{"text_format":"1","workbook":"xlsx","n_sheets":6,"sheets":["TEMPATE INFO","INSTRUCTIONS","DEFINITIONS","Supplier Diversity Profile","Control Panel","Dropdowns"],"not_rendered":{"charts":0,"images":8,"macros":1,"external_links":0,"defined_names":58,"comments":1,"pivot_tables":0},"unopened":[],"bounds":{"document_bytes":16777216,"sheet_cells":100000,"rows_first":2000,"rows_last":500,"rows_between":2000,"halvings":0,"cell_chars":16384,"cell_head_chars":4096},"cells_cut":0,"cells_raw":0,"read":"whole","date_system":"1900"}

{"sheet":"TEMPATE INFO","index":0,"n_rows":40,"n_cols":19,"rows_kept":40,"cut":false,"hidden":false,"merged":[]}
[]
[null,null,null,null,null,null,null,null,null,null,null,null,null,null,null,null,null,null,"Supplier Diversity & Local Participation Reporting"]
[null,null,null,null,null,null,null,null,null,null,null,null,null,null,null,null,null,null,"Subcontractor Profile ID Form"]
[null,"Excel / Template Technical Instructions and Information",null,null,null,null,null,null,null,null,null,null,null,null,null,null,null,null,{"$f":"\"Version \"&TemplateVersion","v":"Version SDPE201.8"}]
[]
[null,"Compatibility:","This template requires the DESKTOP version of Excel for Windows PC, 2013 or newer.  (32-bit and 64-bit compatible)  "]
[null,null,null,"Not compatible with Excel online via Web-browser / Teams / etc"]
[null,null,null,"Not compatible with Excel for Mac OS."]
[]
[null,"Macros:","This template requires macros to be enabled.  If prompted when opening this workbook, you must ENABLE CONTENT to allow for the automated features of this workbook to function."]
[null,null,"If macros are not functioning or you missed the prompt, close the workbook and reopen it to be prompted again to enable content."]
[]
[]
[]
[]
[]
[]
[]
[]
[]
[null,"Structure:","Do not change the structure or layout of this template in any way.  The tables on each sheet have been set up specifically to be read by an automated system upon submission to TC Energy."]
[null,null,"When submitting this template, the submission must be a copy of this workbook as an XLSM file to prevent losing the VBA code if it gets saved in a regular XLSX format."]
[]
[null,"Cloud Services:","This template SHOULD NOT be used with, or saved to, Google Drive.  The use of Google Drive has been known to damage some of the programable features of this workbook."]
[null,null,"It is always best to save this file directly to a computer's local harddrive, or a company-provided network drive."]
[]
[null,"Ribbon Menu - Automation Features"]
[]
[null,"This workbook has its own custom Excel ribbon menu, \"DIVERSITY\".  "]
[null,"You will be able to access important administrative tools and features via this menu --->"]
[]
[]
[]
[null,"Ribbon Menu Buttons:"]
[]
[null,null,"Input / Edit Subcontractor Profile"]
[null,null,"This will load an input form to allow you to input/edit your company's information."]
[]
[null,null,"Check / Validate Profile Inputs"]
[null,null,"This will perform some validation and logic checks on your inputs to ensure all required fields are filled in."]

{"sheet":"INSTRUCTIONS","index":1,"n_rows":26,"n_cols":8,"rows_kept":26,"cut":false,"hidden":false,"merged":[]}
[]
[null,null,null,null,null,null,null,"Supplier Diversity & Local Participation Reporting"]
[null,null,null,null,null,null,null,"Subcontractor Profile ID Form"]
[null,"Instructions",null,null,null,null,null,{"$f":"\"Version \"&TemplateVersion","v":"Version SDPE201.8"}]
[]
[null,"The form contained within this workbook is to be used to report your company's diversity profile and associated information.  "]
[]
[null,"If you require assistance, please send an email to DLS_SUPPORT@tcenergy.com"]
[]
[null,"Note: All diversity information provided to us by your company is voluntary.  Please read the Diversity Information Consent statement on the 'Supplier Diversity Profile' sheet."]
[]
[null,"Steps for submitting this form"]
[]
[null,"Step 1","Enter Your Company Information & Profile"]
[]
[null,null,null,"On the DIVERSITY option of Excel's ribbon menu, click on 'Input / Edit Subcontractor Profile' to load an input form."]
[null,null,null,"Enter your company's information and diversity profile."]
[]
[]
[null,"Step 2","Check Your Inputs"]
[]
[null,null,null,"Press 'Check / Validate Profile Inputs' on Excel's 'DIVERSITY' ribbon menu to validate the data you have provided for submission."]
[null,null,null,"This utility will alert you to any issues or errors it detects, so they can be corrected prior to submission. "]
[]
[]
[null,"Step 3","Save and email this form to your Prime / General Contractor for processing with TC Energy."]

{"sheet":"DEFINITIONS","index":2,"n_rows":4,"n_cols":19,"rows_kept":4,"cut":false,"hidden":false,"merged":[]}
[]
[null,null,null,null,null,null,null,null,null,null,null,null,null,null,null,null,null,null,"Supplier Diversity & Local Participation Reporting"]
[]
[null,null,null,null,null,null,null,null,null,null,null,null,null,null,null,null,null,null,"Diversity Definitions"]

{"sheet":"Supplier Diversity Profile","index":3,"n_rows":41,"n_cols":7,"rows_kept":41,"cut":false,"hidden":false,"merged":[[40,1,46,5],[21,1,22,2]]}
[]
[null,null,null,null,null,"Supplier Diversity & Local Participation Reporting"]
[null,null,null,null,null,"Subcontractor Profile ID Form"]
[null,null,null,null,null,{"$f":"\"Version \"&TemplateVersion","v":"Version SDPE201.8"}]
[null,"Instructions:  ",null,null,null,"Macros must be enabled for this workbook's automated features to function"]
[null,"Read the Diversity Information Consent notice below."]
[null,"To begin, press the INPUT/EDIT SUBCONTRACTOR PROFILE button on Excel's DIVERSITY menu above.  This will launch a popup dialog box to input or edit your company and profile information."]
[null,"You can press the CHECK / VALIDATE PROFILE INPUTS button on Excel's DIVERSITY menu above to check and validate your entries on this sheet."]
[null,null,null,null,null,"* indicates a required input"]
[null,"Questions"]
[null,"Is this a net new submission for a TC Diversity Profile to be assigned, or is this an update to an existing profile?",null,null,null,null,"*"]
[null,"If this is an update to an existing profile, please state the TC Diversity Profile ID that is being updated.  Otherwise enter 'n/a'.",null,null,null,null,{"$f":"IF(set_NEW_OR_UPDATE_PROFILE=\"Update\",\"*\",\"\")","v":""}]
[null,null,null,null,"Effective Date of This Profile Information",null,"*"]
[]
[null,"Subcontractor's Company Information & Contact Details",null,null,"Diversity Profile of Subcontractor's Current Ownership   (*select at least 1, check all that apply)"]
[null,"Subcontractor's Legal Business Name",null,"*","Choose Not To Answer"]
[null,"Operating-As Name (if applicable)",null,null,"None (Not Diverse)"]
[null,"TC Energy Assigned SAP Vendor No. (if applicable)",null,null,"Women"]
[null,"Federal Tax ID (GST/HST or FEIN)",null,"*","LGBT"]
[null,null,null,null,"Veteran"]
[null,"Joint Venture or Partner(s)",null,null,"Black / African / African-American"]
[null,"Note: JV/Partnerships cannot be updated on existing profiles. If there are changes to partnerships or organizational structure, a new TC Diversity Profile ID will need to be issued.",null,null,"Asian / Asian-Indian / Asian-Pacific"]
[null,null,null,null,"Hispanic"]
[null,"JV/Partner 1 (if applicable)",null,null,"Other Visible Minority"]
[null,"JV/Partner 2 (if applicable)",null,null,"Native-American (USA)"]
[null,"JV/Partner 3 (if applicable)",null,null,"Indigenous (CAN)"]
[null,null,null,null,"Ownership Structure (if Indigenous or Native-American)",null,{"$f":"IF(OR(set_PROFILE_NATIVEAMERICAN=\"Yes\",set_PROFILE_INDIGENOUS=\"Yes\"),\"*\",\"\")","v":""}]
[null,"Corporate or Regional Head Office Location",null,null,"Indigenous Affiliation (if Indigenous or Native-American)",null,{"$f":"IF(OR(set_PROFILE_NATIVEAMERICAN=\"Yes\",set_PROFILE_INDIGENOUS=\"Yes\"),\"*\",\"\")","v":""}]
[null,"Address Line 1",null,"*","Additional or Other Indigenous Affiliation(s) (if applicable)"]
[null,"Address Line 2"]
[null,"City/Town",null,"*","Diversity Certifications (if applicable)"]
[null,"Province/State",null,"*","Certifying Body/Organization","Certification Number or ID"]
[null,"Country",null,"*"]
[]
[null,"Reporting Administrator's Contact Information"]
[null,"Reporting Contact Name",null,"*"]
[null,"Email",null,"*"]
[null,"Phone",null,"*"]
[]
[null,"Diversity Information Consent"]
[null,"TC Energy values making contributions to social and economic well-being in communities adjacent to our business. We endeavor to create equitable opportunities for qualified indigenous, diverse and local businesses and individuals to benefit from our footprint. This commitment to enabling social and economic opportunities for the communities where we live and work is reflected in our supplier diversity and local participation practices. TC Energy collects this data as an important part of tracking the inclusion of indigenous, diverse and local suppliers in our business and related opportunities. The collection and utilization of this information is in support of our Supplier Diversity and Local Participation Program, designed to increase participation of Indigenous, diverse and local businesses in the company’s supply chain. Responses to questions in the ‘Diversity Information’ sections are voluntary. If you have additional questions regarding the Supplier Diversity and Local Participation Program at TC Energy please contact dls_support@TC Energy.com. All data collected in this form will be stored in a data center located in the United States and will be retained for only as long as reasonably required by TC Energy. For more information or questions related to TC Energy’s Protection of Personal Information Policy, please contact our Privacy Officer (privacy_office@TCEnergy.com). "]

{"sheet":"Control Panel","index":4,"n_rows":45,"n_cols":49,"rows_kept":45,"cut":false,"hidden":true,"merged":[]}
[]
[null,"This table is used to collect and 'flatten out' the information provided on the \"Supplier Diversity Profile\" sheet (for a dimension table), and contains information of the Subcontractor Company."]
[]
[null,"Setup Headers:","Supplier's Legal Business Name","Supplier's Operating As Name","Supplier's Address Line 1","Supplier's Address Line 2","Supplier's City / Town","Supplier's Prov / State","Supplier's Country","Supplier's TC Energy Vendor No.","Supplier's Reporting Contact Name","Supplier's Reporting Contact Email","Supplier's Reporting Contact Phone","JV/Partner 1","JV/Partner 2","JV/Partner 3","JV/Partner 4","JV/Partner 5","JV/Partner 6","New Submission or Update to Profile","TC Diversity Profile ID (if updating existing)","Effective Date of Profile Information","Supplier's Profile - Choose Not To Answer","Supplier's Profile - None (Not Diverse)","Supplier's Profile - Women","Supplier's Profile - LGBT","Supplier's Profile - Veteran","Supplier's Profile - Black / African / African-American","Supplier's Profile - Asian / Asian-Indian / Asian-Pacific","Supplier's Profile - Hispanic","Supplier's Profile - Other Visible Minority","Supplier's Profile - Native-American (USA)","Supplier's Profile - Indigenous (CAN)","Supplier's Profile - Indigenous Affiliation","Supplier's Profile - Additional or Other Indigenous Affiliation","Supplier's Profile - Ownership Structure if Indigenous","Diversity Certification Type 1","Diversity Certification No/ID 1","Diversity Certification Type 2","Diversity Certification No/ID 2","Diversity Certification Type 3","Diversity Certification No/ID 3","Diversity Certification Type 4","Diversity Certification No/ID 4","Diversity Certification Type 5","Diversity Certification No/ID 5","Diversity Certification Type 6","Diversity Certification No/ID 6","Template Version"]
[null,"Setup Entries:",{"$f":"IF(set_BUSINESS_NAME=\"\",\"Not Stated\",set_BUSINESS_NAME)","v":"Not Stated"},{"$f":"IF(set_OPERATING_NAME=\"\",\"Not Stated\",set_OPERATING_NAME)","v":"Not Stated"},{"$f":"IF(set_ADDRESS1=\"\",\"Not Stated\",set_ADDRESS1)","v":"Not Stated"},{"$f":"IF(set_ADDRESS2=\"\",\"\",set_ADDRESS2)","v":""},{"$f":"IF(set_CITY=\"\",\"Not Stated\",set_CITY)","v":"Not Stated"},{"$f":"IF(set_PROVSTATE=\"\",\"Not Stated\",set_PROVSTATE)","v":"Not Stated"},{"$f":"IF(set_COUNTRY=\"\",\"Not Stated\",set_COUNTRY)","v":"Not Stated"},{"$f":"IF(set_TC_ENERGY_VENDOR_NUMBER=\"\",\"Not Stated\",set_TC_ENERGY_VENDOR_NUMBER)","v":"Not Stated"},{"$f":"IF(set_REPORTING_CONTACT_NAME=\"\",\"Not Stated\",set_REPORTING_CONTACT_NAME)","v":"Not Stated"},{"$f":"IF(set_REPORTING_CONTACT_EMAIL=\"\",\"Not Stated\",set_REPORTING_CONTACT_EMAIL)","v":"Not Stated"},{"$f":"IF(set_REPORTING_CONTACT_PHONE=\"\",\"Not Stated\",set_REPORTING_CONTACT_PHONE)","v":"Not Stated"},{"$f":"IF(set_JV_PARTNER1=\"\",\"\",set_JV_PARTNER1)","v":""},{"$f":"IF(set_JV_PARTNER2=\"\",\"\",set_JV_PARTNER2)","v":""},{"$f":"IF(set_JV_PARTNER3=\"\",\"\",set_JV_PARTNER3)","v":""},"Field Not Used (Placeholder for future)","Field Not Used (Placeholder for future)","Field Not Used (Placeholder for future)",{"$f":"IF(set_NEW_OR_UPDATE_PROFILE=\"\",\"\",set_NEW_OR_UPDATE_PROFILE)","v":""},{"$f":"IF(set_DIVERSITY_PROFILE_ID=\"\",\"\",set_DIVERSITY_PROFILE_ID)","v":""},{"$f":"IF(set_EFFECTIVE_DATE=\"\",\"\",set_EFFECTIVE_DATE)","v":""},{"$f":"IF(set_PROFILE_CHOOSENOTTOANSWER=\"\",\"\",set_PROFILE_CHOOSENOTTOANSWER)","v":""},{"$f":"IF(set_PROFILE_NOTDIVERSE=\"\",\"\",set_PROFILE_NOTDIVERSE)","v":""},{"$f":"IF(set_PROFILE_WOMEN=\"\",\"\",set_PROFILE_WOMEN)","v":""},{"$f":"IF(set_PROFILE_LGBT=\"\",\"\",set_PROFILE_LGBT)","v":""},{"$f":"IF(set_PROFILE_VETERAN=\"\",\"\",set_PROFILE_VETERAN)","v":""},{"$f":"IF(set_PROFILE_BLACK=\"\",\"\",set_PROFILE_BLACK)","v":""},{"$f":"IF(set_PROFILE_ASIAN=\"\",\"\",set_PROFILE_ASIAN)","v":""},{"$f":"IF(set_PROFILE_HISPANIC=\"\",\"\",set_PROFILE_HISPANIC)","v":""},{"$f":"IF(set_PROFILE_OTHERVISIBLEMINORITY=\"\",\"\",set_PROFILE_OTHERVISIBLEMINORITY)","v":""},{"$f":"IF(set_PROFILE_NATIVEAMERICAN=\"\",\"\",set_PROFILE_NATIVEAMERICAN)","v":""},{"$f":"IF(set_PROFILE_INDIGENOUS=\"\",\"\",set_PROFILE_INDIGENOUS)","v":""},{"$f":"IF(set_PROFILE_INDIGENOUSAFFILIATION=\"\",\"\",set_PROFILE_INDIGENOUSAFFILIATION)","v":""},{"$f":"IF(set_PROFILE_INDIGENOUSAFFILIATIONOTHER=\"\",\"\",set_PROFILE_INDIGENOUSAFFILIATIONOTHER)","v":""},{"$f":"IF(set_PROFILE_OWNERSHIPSTRUCTURE=\"\",\"Not Stated\",set_PROFILE_OWNERSHIPSTRUCTURE)","v":"Not Stated"},{"$f":"IF(set_PROFILE_DIVERSITYCERT1=\"\",\"\",set_PROFILE_DIVERSITYCERT1)","v":""},{"$f":"IF(set_PROFILE_DIVERSITYCERTNUMBER1=\"\",\"\",set_PROFILE_DIVERSITYCERTNUMBER1)","v":""},{"$f":"IF(set_PROFILE_DIVERSITYCERT2=\"\",\"\",set_PROFILE_DIVERSITYCERT2)","v":""},{"$f":"IF(set_PROFILE_DIVERSITYCERTNUMBER2=\"\",\"\",set_PROFILE_DIVERSITYCERTNUMBER2)","v":""},{"$f":"IF(set_PROFILE_DIVERSITYCERT3=\"\",\"\",set_PROFILE_DIVERSITYCERT3)","v":""},{"$f":"IF(set_PROFILE_DIVERSITYCERTNUMBER3=\"\",\"\",set_PROFILE_DIVERSITYCERTNUMBER3)","v":""},{"$f":"IF(set_PROFILE_DIVERSITYCERT4=\"\",\"\",set_PROFILE_DIVERSITYCERT4)","v":""},{"$f":"IF(set_PROFILE_DIVERSITYCERTNUMBER4=\"\",\"\",set_PROFILE_DIVERSITYCERTNUMBER4)","v":""},{"$f":"IF(set_PROFILE_DIVERSITYCERT5=\"\",\"\",set_PROFILE_DIVERSITYCERT5)","v":""},{"$f":"IF(set_PROFILE_DIVERSITYCERTNUMBER5=\"\",\"\",set_PROFILE_DIVERSITYCERTNUMBER5)","v":""},{"$f":"IF(set_PROFILE_DIVERSITYCERT6=\"\",\"\",set_PROFILE_DIVERSITYCERT6)","v":""},{"$f":"IF(set_PROFILE_DIVERSITYCERTNUMBER6=\"\",\"\",set_PROFILE_DIVERSITYCERTNUMBER6)","v":""},{"$f":"TemplateVersion","v":"SDPE201.8"}]
[null,"Formulas used:"," =IF(set_PRIME_BUSINESS_NAME=\"\",\"Not Stated\",set_PRIME_BUSINESS_NAME)"," =IF(set_PRIME_OPERATING_NAME=\"\",\"Not Stated\",set_PRIME_OPERATING_NAME)"," =IF(set_PRIME_ADDRESS1=\"\",\"Not Stated\",set_PRIME_ADDRESS1)"," =IF(set_PRIME_ADDRESS2=\"\",\"Not Stated\",set_PRIME_ADDRESS2)"," =IF(set_PRIME_CITY=\"\",\"Not Stated\",set_PRIME_CITY)"," =IF(set_PRIME_PROVSTATE=\"\",\"Not Stated\",set_PRIME_PROVSTATE)","=IF(set_PRIME_COUNTRY=\"\",\"Not Stated\",set_PRIME_COUNTRY)"," =IF(set_PRIME_TC_ENERGY_VENDOR_NUMBER=\"\",\"Not Stated\",set_PRIME_TC_ENERGY_VENDOR_NUMBER)"," =IF(set_PRIME_REPORTING_CONTACT_NAME=\"\",\"Not Stated\",set_PRIME_REPORTING_CONTACT_NAME)"," =IF(set_PRIME_REPORTING_CONTACT_EMAIL=\"\",\"Not Stated\",set_PRIME_REPORTING_CONTACT_EMAIL)"," =IF(set_PRIME_REPORTING_CONTACT_PHONE=\"\",\"Not Stated\",set_PRIME_REPORTING_CONTACT_PHONE)",null,null,null,null,null,null,null,null,null,"=IF(set_PRIME_PROFILE_CHOOSENOTTOANSWER=\"\",\"Not Stated\",set_PRIME_PROFILE_CHOOSENOTTOANSWER)"," =IF(set_PRIME_PROFILE_NOTDIVERSE=\"\",\"Not Stated\",set_PRIME_PROFILE_NOTDIVERSE)"," =IF(set_PRIME_PROFILE_WOMEN=\"\",\"Not Stated\",set_PRIME_PROFILE_WOMEN)"," =IF(set_PRIME_PROFILE_LGBT=\"\",\"Not Stated\",set_PRIME_PROFILE_LGBT)"," =IF(set_PRIME_PROFILE_VETERAN=\"\",\"Not Stated\",set_PRIME_PROFILE_VETERAN)","=IF(set_PRIME_PROFILE_AFRICAN=\"\",\"Not Stated\",set_PRIME_PROFILE_AFRICAN)","=IF(set_PRIME_PROFILE_ASIAN=\"\",\"Not Stated\",set_PRIME_PROFILE_ASIAN)","=IF(set_PRIME_PROFILE_HISPANIC=\"\",\"Not Stated\",set_PRIME_PROFILE_HISPANIC)"," =IF(set_PRIME_PROFILE_OTHERVISIBLEMINORITY=\"\",\"Not Stated\",set_PRIME_PROFILE_OTHERVISIBLEMINORITY)"," =IF(set_PRIME_PROFILE_NATIVEAMERICAN=\"\",\"Not Stated\",set_PRIME_PROFILE_NATIVEAMERICAN)"," =IF(set_PRIME_PROFILE_INDIGENOUS=\"\",\"Not Stated\",set_PRIME_PROFILE_INDIGENOUS)"," =IF(set_PRIME_PROFILE_INDIGENOUSAFFILIATION=\"\",\"\",set_PRIME_PROFILE_INDIGENOUSAFFILIATION)"," =IF(set_PRIME_PROFILE_INDIGENOUSAFFILIATIONOTHER=\"\",\"\",set_PRIME_PROFILE_INDIGENOUSAFFILIATIONOTHER)","=IF(set_PRIME_PROFILE_OWNERSHIPSTRUCTURE=\"\",\"Not Stated\",set_PRIME_PROFILE_OWNERSHIPSTRUCTURE)","=IF(set_PRIME_PROFILE_DIVERSITYCERT1=\"\",\"\",set_PRIME_PROFILE_DIVERSITYCERT1)","=IF(set_PRIME_PROFILE_DIVERSITYCERTNUMBER1=\"\",\"\",set_PRIME_PROFILE_DIVERSITYCERTNUMBER1)","=IF(set_PRIME_PROFILE_DIVERSITYCERT2=\"\",\"\",set_PRIME_PROFILE_DIVERSITYCERT2)","=IF(set_PRIME_PROFILE_DIVERSITYCERTNUMBER2=\"\",\"\",set_PRIME_PROFILE_DIVERSITYCERTNUMBER2)","=IF(set_PRIME_PROFILE_DIVERSITYCERT3=\"\",\"\",set_PRIME_PROFILE_DIVERSITYCERT3)","=IF(set_PRIME_PROFILE_DIVERSITYCERTNUMBER3=\"\",\"\",set_PRIME_PROFILE_DIVERSITYCERTNUMBER3)","=IF(set_PRIME_PROFILE_DIVERSITYCERT4=\"\",\"\",set_PRIME_PROFILE_DIVERSITYCERT4)","=IF(set_PRIME_PROFILE_DIVERSITYCERTNUMBER4=\"\",\"\",set_PRIME_PROFILE_DIVERSITYCERTNUMBER4)","=IF(set_PRIME_PROFILE_DIVERSITYCERT5=\"\",\"\",set_PRIME_PROFILE_DIVERSITYCERT5)","=IF(set_PRIME_PROFILE_DIVERSITYCERTNUMBER5=\"\",\"\",set_PRIME_PROFILE_DIVERSITYCERTNUMBER5)","=IF(set_PRIME_PROFILE_DIVERSITYCERT6=\"\",\"\",set_PRIME_PROFILE_DIVERSITYCERT6)","=IF(set_PRIME_PROFILE_DIVERSITYCERTNUMBER6=\"\",\"\",set_PRIME_PROFILE_DIVERSITYCERTNUMBER6)"]
[]
[null,null,"Current Template Version",null,null,null,null,null,"VBA Helper Cells"]
[null,null,null,null,null,null,null,null,"These cells are used by VBA to store temporary test strings related to popup message boxes."]
[null,null,"Template Version","SDPE201.8","Supplier Diversity Profile, English, v2.01",null,null,null,"The intention of using helper cells instead of public/global variables is to prevent unecessary memory consumption"]
[null,null,null,null,null,null,null,null,"MessageHeader"]
[null,null,null,null,null,null,null,null,"MessageBody"]
[null,null,null,null,null,null,null,null,"Hide/Show Instructions"]
[null,null,"Change Log"]
[]
[null,null,"2021-02-01 Release","SDPE201"]
[null,null,"Changes:","Complete re-design of template, submission process, and reporting structure"]
[]
[null,null,"2021-11-23","SDPE201.7"]
[null,null,"Update Type:","Update"]
[null,null,"Changes:","Applied changes to bring this template in sync with reporting template PE201.7"]
[null,null,null,"1) On Prime/GC setup userform, we reversed the order of the indigenous affiliation and ownership sections.  This is because for the subcontractor onboarding form",null,null,null,null,"Table Naming Convention:"]
[null,null,null,"we will be moving to making a stated affiliation mandatory if they selected \"Group Affiliated Business\".",null,null,null,null,"use a prefix \"tbl_\" for all tables - this allows us to see within a Query that the target object is a TABLE, not a SHEET"]
[null,null,null,"2) Updated the label on the Prime/GC Setup worksheet and userform to make it clearer that we are asking for the diversity profile of the company ownership, not their workforce.",null,null,null,null,"use a language and version code, i.e. SDPE201, denoting SDP (Supplier Diversity Profile), followed by E (English) or F (French) or S (Spanish) and a 3-digit number for the version (ie, Version 2.01) but without the decimal point"]
[null,null,null,"3) Updated validation logic for required inputs on Prime/GC Setup userform - corrected a popup MsgBox typo for ownership status, and added in",null,null,null,null,"suffix with a clear and descriptive name for the table"]
[null,null,null,"a sheet-level validation check for ownership structure and affiliation to be stated if Indigenous or Native American was selected.",null,null,null,null,null,"Example of a full table name:"]
[null,null,null,null,null,null,null,null,null,"tbl_SDPE201_DiversityProfile"]
[null,null,"2022-09-27","SDPE201.8"]
[null,null,"Update Type:","Bug Fixes"]
[null,null,"Changes:","Validation on diversity profile selections contained an error from when we changed the response of a couple categories",null,null,null,null,"SETUP sheet validations"]
[null,null,null,"1) Choose Not To Answer - was \"Yes\", but changed it to \"No Response\" to be more clear",null,null,null,null,"Diversity Profile selections and inputs are validated for:"]
[null,null,null,"2) None (Not Diverse) - was \"Yes\" if selected, but changed it to be \"Not Diverse\" to be more clear",null,null,null,null,"If CHOOSE NOT TO ANSWER Is checked, the userform will prompt and remove any other selections"]
[null,null,null,"The validation scripts needed to be updated to reflect this change.",null,null,null,null,"If NONE Is checked, the userform will prompt and remove any other selections"]
[null,null,null,"The Clear Form command button was not clearing the formatting in the worksheet if validation errors were present.  This has been fixed.",null,null,null,null,"If Indigenous or Native-American is selected, the section for additional details will appear (otherwise will remain hidden)"]
[null,null,null,null,null,null,null,null,"If Indigenous or Native-American is selected, the userform will prompt for an affiliation and owndership status to be stated (even if its \"n/a\" for affiliation)"]
[null,null,null,null,null,null,null,null,"If an affiliation is stated, but nothing is checked for Indigenous or Native-American, then the user will be prompted to make a selection"]
[null,null,null,null,null,null,null,null,"If an ownership structure is stated, but nothing is checked for Indigenous or Native-American, then the user will be prompted to make a selection"]
[null,null,null,null,null,null,null,null,"When the Country is selected for the company address, the Prov/State dropdown selection is CLEARED and populated with selection options specific to the country chosen"]
[null,null,null,null,null,null,null,null,"All dropdown menu options must match an item on the list provided, or be blank.  The user will be prompted if attempting to enter something that isn't already on the list."]
[null,null,null,null,null,null,null,null,"SAP Vendor #s are validated as being 7-digits, and starting with a 2."]
[null,null,null,null,null,null,null,null,"SAP Project Number is validated as being 8 characters long, starting with 2., E., M., or C followed by a period and 6 numerical digits"]
[null,null,null,null,null,null,null,null,"Email input is validated to be reasonably likely to be valid:  \"^[a-zA-Z0-9\\._-]+@([a-zA-Z0-9_-]+\\.)+([a-zA-Z]{2,4})$\""]
[null,null,null,null,null,null,null,null,"Effective Date is checked that it evaluates to a recognized date"]
[null,null,null,null,null,null,null,null,"Equal signs \"=\" are blocked from all userform text inputs to prevent users from entering formulas into the worksheet cells"]
[null,null,null,null,null,null,null,null,"Numerical inputs (year, month, day) block alpha characters from being input at all"]

{"sheet":"Dropdowns","index":5,"n_rows":1504,"n_cols":13,"rows_kept":1504,"cut":false,"hidden":true,"merged":[]}
[]
[null,"These tables all feed various dropdown menus (data validation) throughout this workbook and it's related VBA code modules."]
[]
[null,"dd_CountryOfWork",null,"dd_Countries",null,"dd_ProvState",null,null,null,"dd_IndigenousAffiliation",null,"dd_DiversityCertifications"]
[null,"Countries",null,"Countries",null,"Prov/State","Abbreviation","Country",null,"Indigenous Affiliation",null,"Diversity Certification","Country"]
[null,"Canada",null,"Canada",null,"Intl. (Non - CAN/US/MEX)","Other","International",null,"-- Prefer not to disclose --",null,"National Minority Supplier Development Council (NMSDC)","United States"]
[null,"United States",null,"United States",null,"Alberta","AB","Canada",null,"-- No community affiliation --",null,"Women’s Business Enterprise National Council (WBENC)","United States"]
[null,"Mexico",null,"Mexico",null,"British Columbia","BC","Canada",null,"-- Non-status Indigenous --",null,"Small Business Administration (SBA)","United States"]
[null,null,null,"Afghanistan",null,"Manitoba","MB","Canada",null,"-- Affiliation name not found on this list (please state affiliation name(s) in the next box) --",null,"National Gay & Lesbian Chamber of Commerce (NGLCC)","United States"]
[null,null,null,"Aland Islands",null,"New Brunswick","NB","Canada",null,"Aamjiwnaang First Nation",null,"National Veteran Business Development Council (NVBDC)","United States"]
[null,null,null,"Albania",null,"Newfoundland and Labrador","NL","Canada",null,"Abegweit First Nation",null,"U.S. Business Leadership Network (USBLN)","United States"]
[null,null,null,"Algeria",null,"Northwest Territories","NT","Canada",null,"Absentee Shawnee Tribe of Indians of Oklahoma",null,"United States Hispanic Chamber of Commerce (USHCC)","United States"]
[null,null,null,"American Samoa",null,"Nova Scotia","NS","Canada",null,"Acadia First Nation",null,"Canadian Aboriginal and Minority Suppliers Council (CAMSC)","Canada"]
[null,null,null,"Andorra",null,"Nunavut","NU","Canada",null,"Acho Dene Koe First Nation",null,"Canadian Gay & Lesbian Chamber of Commerce (CGLCC)","Canada"]
[null,null,null,"Angola",null,"Ontario","ON","Canada",null,"Adams Lake Indian Band",null,"Women Business Enterprise Canada (WBE Canada)","Canada"]
[null,null,null,"Anguilla",null,"Prince Edward Island","PE","Canada",null,"Agdaagux Tribe of King Cove",null,"Inclusive Workplace & Supply Council of Canada (IWSCC)","Canada"]
[null,null,null,"Antarctica",null,"Quebec","QC","Canada",null,"Agua Caliente Band of Cahuilla Indians of the Agua Caliente Indian Reservation, California",null,"WeConnect International","International"]
[null,"dd_IndigenousOwnershipStructure",null,"Antigua and Barbuda",null,"Saskatchewan","SK","Canada",null,"Ahousaht First Nation",null,"Disability: IN","International"]
[null,"Indigenous Ownership Structure",null,"Argentina",null,"Yukon","YT","Canada",null,"Ahtahkakoop Cree Nation"]
[null,"Indigenous Member Owned",null,"Armenia",null,"Alabama","AL","United States",null,"Aishihik First Nation"]
[null,"Indigenous Group Owned",null,"Aruba",null,"Alaska","AK","United States",null,"Aitchelitz First Nation"]
[null,"Indigenous Group Affiliated",null,"Australia",null,"Arizona","AZ","United States",null,"Ak-Chin Indian Community of the Maricopa (Ak Chin) Indian Reservation, Arizona"]
[null,"Non-Status Indigenous Owned",null,"Austria",null,"Arkansas","AR","United States",null,"Akiachak Native Community"]
[null,"Indigenous Joint Venture (51+% Indigenous Owned)",null,"Azerbaijan",null,"California","CA","United States",null,"Akiak Native Community"]
[null,"Prefer Not to Disclose",null,"Bahamas",null,"Colorado","CO","United States",null,"Akisqnuk First Nation"]
[null,null,null,"Bahrain",null,"Connecticut","CT","United States",null,"Akisq'nuk First Nation"]
[null,null,null,"Bangladesh",null,"Delaware","DE","United States",null,"Aklavik First Nation"]
[null,null,null,"Barbados",null,"Florida","FL","United States",null,"Alabama-Coushatta Tribes of Texas"]
[null,null,null,"Belarus",null,"Georgia","GA","United States",null,"Alabama-Quassarte Tribal Town"]
[null,null,null,"Belgium",null,"Hawaii","HI","United States",null,"Alatna Village Council"]
[null,null,null,"Belize",null,"Idaho","ID","United States",null,"Alderville First Nation"]
[null,null,null,"Benin",null,"Illinois","IL","United States",null,"Alexander First Nation"]
[null,null,null,"Bermuda",null,"Indiana","IN","United States",null,"Alexis Creek First Nation"]
[null,null,null,"Bhutan",null,"Iowa","IA","United States",null,"Alexis Nakota Sioux Nation"]
[null,null,null,"Bolivia, Plurinational State of",null,"Kansas","KS","United States",null,"Algaaciq Native Village (St. Mary's)"]
[null,null,null,"Bonaire, Sint Eustatius and Saba",null,"Kentucky","KY","United States",null,"Algonquin Anishinabeg Nation Tribal Council"]
[null,null,null,"Bosnia and Herzegovina",null,"Louisiana","LA","United States",null,"Algonquins of Barriere Lake"]
[null,null,null,"Botswana",null,"Maine","ME","United States",null,"Algonquins of Greater Golden Lake"]
[null,null,null,"Bouvet Island",null,"Maryland","MD","United States",null,"Algonquins of Ontario Consultation Office"]
[null,null,null,"Brazil",null,"Massachusetts","MA","United States",null,"Algonquins of Pikwàkanagàn First Nation"]
[null,null,null,"British Indian Ocean Territory",null,"Michigan","MI","United States",null,"Allakaket Village"]
[null,null,null,"Brunei Darussalam",null,"Minnesota","MN","United States",null,"Alturas Indian Rancheria"]
[null,null,null,"Bulgaria",null,"Mississippi","MS","United States",null,"Alutiiq Tribe of Old Harbor"]
[null,null,null,"Burkina Faso",null,"Missouri","MO","United States",null,"Angoon Community Association"]
[null,null,null,"Burundi",null,"Montana","MT","United States",null,"Animakee Wa Zhing 37 First Nation"]
[null,null,null,"Cambodia",null,"Nebraska","NE","United States",null,"Animbiigoo Zaagi'igan Anishinaabek First Nation"]
[null,null,null,"Cameroon",null,"Nevada","NV","United States",null,"Animbiigoo Zaagi'igan Aniskinaabek (Lake Nipigon First Nation)"]
[null,null,null,"Cape Verde",null,"New Hampshire","NH","United States",null,"Anishinaabe Agowidiiwinan"]
[null,null,null,"Cayman Islands",null,"New Jersey","NJ","United States",null,"Anishinabe of Wauzhushk Onigum"]
[null,null,null,"Central African Republic",null,"New Mexico","NM","United States",null,"Anishnaabeg of Naongashiing"]
[null,null,null,"Chad",null,"New York","NY","United States",null,"Annapolis Valley First Nation"]
[null,null,null,"Chile",null,"North Carolina","NC","United States",null,"Antoine First Nation"]
[null,null,null,"China",null,"North Dakota","ND","United States",null,"Anvik Tribal Council"]
[null,null,null,"Christmas Island",null,"Ohio","OH","United States",null,"Apache Tribe of Oklahoma"]
[null,null,null,"Cocos (Keeling) Islands",null,"Oklahoma","OK","United States",null,"Arctic Village"]
[null,null,null,"Colombia",null,"Oregon","OR","United States",null,"Aroland First Nation"]
[null,null,null,"Comoros",null,"Pennsylvania","PA","United States",null,"Aroostook Band of Micmacs"]
[null,null,null,"Congo",null,"Rhode Island","RI","United States",null,"Asa'carsarmiut Tribal Council"]
[null,null,null,"Congo, The Democratic Republic of the",null,"South Carolina","SC","United States",null,"Aseniwuche Winewak Nation"]
[null,null,null,"Cook Islands",null,"South Dakota","SD","United States",null,"Ashcroft First Nation"]
[null,null,null,"Costa Rica",null,"Tennessee","TN","United States",null,"Asini Wachi Nehiyawak Traditional Band"]
[null,null,null,"Cote d'Ivoire",null,"Texas","TX","United States",null,"Assembly of First Nations' Chiefs In New Brunswick"]
[null,null,null,"Croatia",null,"Utah","UT","United States",null,"Assiniboine & Sioux Tribes of the Fort Peck Indian Reservation, MT"]
[null,null,null,"Cuba",null,"Vermont","VT","United States",null,"Asubspeeschoseewagong Netum Anishinabek"]
[null,null,null,"Curacao",null,"Virginia","VA","United States",null,"Athabasca Chipewyan First Nation"]
[null,null,null,"Cyprus",null,"Washington","WA","United States",null,"Athabasca Landing Local 2010"]
[null,null,null,"Czech Republic",null,"West Virginia","WV","United States",null,"Atikameksheng Anishnawbek"]
[null,null,null,"Denmark",null,"Wisconsin","WI","United States",null,"Atikamekw D'Opitciwan First Nation"]
[null,null,null,"Djibouti",null,"Wyoming","WY","United States",null,"Atikimekw Sipi – Conseil de la Nation Atikamekw"]
[null,null,null,"Dominica",null,"Aguascalientes","AGU","Mexico",null,"Atqasuk Village (Atkasook)"]
[null,null,null,"Dominican Republic",null,"Baja California","BCN","Mexico",null,"Attawapiskat First Nation"]
[null,null,null,"Ecuador",null,"Baja California Sur","BCS","Mexico",null,"Augustine Band of Cahuilla Indians, California"]
[null,null,null,"Egypt",null,"Campeche","CAM","Mexico",null,"Aundeck Omni Kaning First Nation"]
[null,null,null,"El Salvador",null,"Chiapas","CHP","Mexico",null,"Bad River Band of Lake Superior Tribe of Chippewa Indians"]
[null,null,null,"Equatorial Guinea",null,"Chihuahua","CHH","Mexico",null,"Bancroft (Kijicho Manito Madaouskarini)"]
[null,null,null,"Eritrea",null,"Coahuila","COA","Mexico",null,"Barren Lands First Nation"]
[null,null,null,"Estonia",null,"Colima","COL","Mexico",null,"Batchewana First Nation"]
[null,null,null,"Ethiopia",null,"Mexico City","CMX","Mexico",null,"Bay Mills Indian Community, Michigan"]
[null,null,null,"Falkland Islands (Malvinas)",null,"Durango","DUR","Mexico",null,"Bear River Band of the Rohnerville Rancheria, California"]
[null,null,null,"Faroe Islands",null,"Guanajuato","GUA","Mexico",null,"Bear River First Nation"]
[null,null,null,"Fiji",null,"Guerrero","GRO","Mexico",null,"Beardy's & Okemasis' Cree Nation"]
[null,null,null,"Finland",null,"Hidalgo","HID","Mexico",null,"Bearfoot Onondaga Six Nations of the Grand River"]
[null,null,null,"France",null,"Jalisco","JAL","Mexico",null,"Bearskin Lake First Nation"]
[null,null,null,"French Guiana",null,"México","MEX","Mexico",null,"Bearspaw First Nation"]
[null,null,null,"French Polynesia",null,"Michoacán","MIC","Mexico",null,"Beausoleil First Nation"]
[null,null,null,"French Southern Territories",null,"Morelos","MOR","Mexico",null,"Beaver First Nation"]
[null,null,null,"Gabon",null,"Nayarit","NAY","Mexico",null,"Beaver Lake Cree Nation"]
[null,null,null,"Gambia",null,"Nuevo León","NLE","Mexico",null,"Beaver Village"]
[null,null,null,"Georgia",null,"Oaxaca","OAX","Mexico",null,"Beaverhouse First Nation"]
[null,null,null,"Germany",null,"Puebla","PUE","Mexico",null,"Beecher Bay First Nation"]
[null,null,null,"Ghana",null,"Querétaro","QUE","Mexico",null,"Behdzi Ahda' First Nation Band"]
[null,null,null,"Gibraltar",null,"Quintana Roo","ROO","Mexico",null,"Berens River First Nation"]
[null,null,null,"Greece",null,"San Luis Potosí","SLP","Mexico",null,"Berry Creek Rancheria of Maidu Indians of California"]
[null,null,null,"Greenland",null,"Sinaloa","SIN","Mexico",null,"Big Bear (Chief Big Bear) First Nation"]
[null,null,null,"Grenada",null,"Sonora","SON","Mexico",null,"Big Grassy River First Nation"]
[null,null,null,"Guadeloupe",null,"Tabasco","TAB","Mexico",null,"Big Island Lake Cree Nation"]
[null,null,null,"Guam",null,"Tamaulipas","TAM","Mexico",null,"Big Lagoon Rancheria, California"]
[null,null,null,"Guatemala",null,"Tlaxcala","TLA","Mexico",null,"Big Pine Paiute Tribe of the Owens Valley"]
[null,null,null,"Guernsey",null,"Veracruz","VER","Mexico",null,"Big River First Nation"]
[null,null,null,"Guinea",null,"Yucatán","YUC","Mexico",null,"Big Sandy Rancheria of Western Mono Indians of California"]
[null,null,null,"Guinea-Bissau",null,"Zacatecas","ZAC","Mexico",null,"Big Valley Band of Pomo Indians of the Big Valley Rancheria, California"]
[null,null,null,"Guyana",null,null,null,null,null,"Bigstone Cree Nation"]
[null,null,null,"Haiti",null,null,null,null,null,"Biigtigong Nishnaabeg"]
[null,null,null,"Heard Island and McDonald Islands",null,null,null,null,null,"Biinjitiwaabik Zaaging Anishinaabek (Rocky Bay First Nation)"]
[null,null,null,"Holy See (Vatican City State)",null,null,null,null,null,"Bimose Tribal Council"]
[null,null,null,"Honduras",null,null,null,null,null,"Bingwi Neyaashi Anishinaabek"]
[null,null,null,"Hong Kong",null,null,null,null,null,"Birch Creek Tribe"]
[null,null,null,"Hungary",null,null,null,null,null,"Birch Narrows First Nation"]
[null,null,null,"Iceland",null,null,null,null,null,"Birdtail Sioux First Nation"]
[null,null,null,"India",null,null,null,null,null,"Bishop Paiute Tribe"]
[null,null,null,"Indonesia",null,null,null,null,null,"Black Lake First Nation"]
[null,null,null,"Iran, Islamic Republic of",null,null,null,null,null,"Black River First Nation"]
[null,null,null,"Iraq",null,null,null,null,null,"Blackfeet Nation"]
[null,null,null,"Ireland",null,null,null,null,null,"Blood Tribe"]
[null,null,null,"Isle of Man",null,null,null,null,null,"Bloodvein First Nation"]
[null,null,null,"Israel",null,null,null,null,null,"Blue Lake Rancheria, California"]
[null,null,null,"Italy",null,null,null,null,null,"Blueberry River First Nations"]
[null,null,null,"Jamaica",null,null,null,null,null,"Bonaparte Indian Band"]
[null,null,null,"Japan",null,null,null,null,null,"Bonnechere Algonquin First Nation"]
[null,null,null,"Jersey",null,null,null,null,null,"Boothroyd First Nation"]
[null,null,null,"Jordan",null,null,null,null,null,"Boston Bar First Nation"]
[null,null,null,"Kazakhstan",null,null,null,null,null,"Bridge River Indian Band"]
[null,null,null,"Kenya",null,null,null,null,null,"Bridgeport Indian Colony"]
[null,null,null,"Kiribati",null,null,null,null,null,"British Columbia Metis Federation"]
[null,null,null,"Korea, Democratic People's Republic of",null,null,null,null,null,"Brokenhead Ojibway Nation"]
[null,null,null,"Korea, Republic of",null,null,null,null,null,"Brunswick House First Nation"]
[null,null,null,"Kosovo",null,null,null,null,null,"Buctouche First Nation"]
[null,null,null,"Kuwait",null,null,null,null,null,"Buena Vista Rancheria of Me-wuk Indians of California"]
[null,null,null,"Kyrgyzstan",null,null,null,null,null,"Buffalo Lake Metis Local Council 2002"]
[null,null,null,"Lao People's Democratic Republic",null,null,null,null,null,"Buffalo Lake Metis Settlement"]
[null,null,null,"Latvia",null,null,null,null,null,"Buffalo Point First Nation"]
[null,null,null,"Lebanon",null,null,null,null,null,"Buffalo River Dene Nation"]
[null,null,null,"Lesotho",null,null,null,null,null,"Bunibonibee Cree Nation"]
[null,null,null,"Liberia",null,null,null,null,null,"Burns Lake Band"]
[null,null,null,"Libya",null,null,null,null,null,"Burns Paiute Tribe"]
[null,null,null,"Liechtenstein",null,null,null,null,null,"Cabazon Band of Mission Indians, California"]
[null,null,null,"Lithuania",null,null,null,null,null,"Cachil DeHe Band of Wintun Indians of the Colusa Indian Community of the Colusa Rancheria, California"]
[null,null,null,"Luxembourg",null,null,null,null,null,"Caddo Nation of Oklahoma"]
[null,null,null,"Macao",null,null,null,null,null,"Cadotte Lake Metis Local 1994"]
[null,null,null,"Macedonia, The Former Yugoslav Republic of",null,null,null,null,null,"Cahto Tribe of the Laytonville Rancheria"]
[null,null,null,"Madagascar",null,null,null,null,null,"Cahuilla Band of Mission Indians of the Cahuilla Reservation, California"]
[null,null,null,"Malawi",null,null,null,null,null,"Caldwell First Nation"]
[null,null,null,"Malaysia",null,null,null,null,null,"California Valley Miwok Tribe, California"]
[null,null,null,"Maldives",null,null,null,null,null,"Campo Band of Diegueno Mission Indians of the Campo Indian Reservation, California"]
[null,null,null,"Mali",null,null,null,null,null,"Canim Lake Band"]
[null,null,null,"Malta",null,null,null,null,null,"Canoe Lake Cree First Nation"]
[null,null,null,"Marshall Islands",null,null,null,null,null,"Canupawakpa Dakota First Nation"]
[null,null,null,"Martinique",null,null,null,null,null,"Cape Mudge First Nation"]
[null,null,null,"Mauritania",null,null,null,null,null,"Capitan Grande Band of Diegueno Mission Indians of California (Barona Group of Capitan Grande Band of Mission Indians of the Barona Reservation, California)"]
[null,null,null,"Mauritius",null,null,null,null,null,"Capitan Grande Band of Diegueno Mission Indians of California: Viejas (Barona Long) Group of Capitan Grande Band of Mission Indians of the Viejas Reservation, California"]
[null,null,null,"Mayotte",null,null,null,null,null,"Carcross/Tagish First Nation"]
[null,null,null,"Micronesia, Federated States of",null,null,null,null,null,"Carrier Sekani Tribal Council"]
[null,null,null,"Moldova, Republic of",null,null,null,null,null,"Carrot River First Nation"]
[null,null,null,"Monaco",null,null,null,null,null,"Carry the Kettle Nakoda Nation"]
[null,null,null,"Mongolia",null,null,null,null,null,"Cat Lake First Nation"]
[null,null,null,"Montenegro",null,null,null,null,null,"Catawba Indian Nation"]
[null,null,null,"Montserrat",null,null,null,null,null,"Cayoose Creek Indian Band"]
[null,null,null,"Morocco",null,null,null,null,null,"Cayuga Nation"]
[null,null,null,"Mozambique",null,null,null,null,null,"Cedarville Rancheria, California"]
[null,null,null,"Myanmar",null,null,null,null,null,"Central Council of the Tlingit & Haida Indian Tribes of Alaska"]
[null,null,null,"Namibia",null,null,null,null,null,"Chalkyitsik Village"]
[null,null,null,"Nauru",null,null,null,null,null,"Champagne and Aishihik First Nations"]
[null,null,null,"Nepal",null,null,null,null,null,"Chapleau Cree First Nation"]
[null,null,null,"Netherlands",null,null,null,null,null,"Chapleau Ojibwe First Nation"]
[null,null,null,"New Caledonia",null,null,null,null,null,"Chard Metis Local 218"]
[null,null,null,"New Zealand",null,null,null,null,null,"Chard Metis Society"]
[null,null,null,"Nicaragua",null,null,null,null,null,"Chawathil First Nation"]
[null,null,null,"Niger",null,null,null,null,null,"Cheam First Nation"]
[null,null,null,"Nigeria",null,null,null,null,null,"Cheesh'na Tribal Council"]
[null,null,null,"Niue",null,null,null,null,null,"Chemawawin Cree Nation"]
[null,null,null,"Norfolk Island",null,null,null,null,null,"Chemehuevi Indian Tribe of the Chemehuevi Reservation, California"]
[null,null,null,"Northern Cyprus",null,null,null,null,null,"Cher-Ae Heights Indian Community of the Trinidad Rancheria, California"]
[null,null,null,"Northern Mariana Islands",null,null,null,null,null,"Cherokee Nation"]
[null,null,null,"Norway",null,null,null,null,null,"Cheslatta Carrier Nation"]
[null,null,null,"Oman",null,null,null,null,null,"Chevak Native Village"]
[null,null,null,"Pakistan",null,null,null,null,null,"Cheyenne and Arapaho Tribes, Oklahoma"]
[null,null,null,"Palau",null,null,null,null,null,"Cheyenne River Sioux Tribe of the Cheyenne River Reservation, SD"]
[null,null,null,"Palestine, State of",null,null,null,null,null,"Chickaloon Native Village"]
[null,null,null,"Panama",null,null,null,null,null,"Chicken Ranch Rancheria of Me-wuk Indians of California"]
[null,null,null,"Papua New Guinea",null,null,null,null,null,"Chignik Bay Tribal Council"]
[null,null,null,"Paraguay",null,null,null,null,null,"Chignik Lake Village"]
[null,null,null,"Peru",null,null,null,null,null,"Chilkat Indian Village (Klukwan)"]
[null,null,null,"Philippines",null,null,null,null,null,"Chilkoot Indian Association (Haines)"]
[null,null,null,"Pitcairn Islands",null,null,null,null,null,"Chinik Eskimo Community (Golovin)"]
[null,null,null,"Poland",null,null,null,null,null,"Chiniki First Nation"]
[null,null,null,"Portugal",null,null,null,null,null,"Chipewyan Prairie Dene First Nation"]
[null,null,null,"Puerto Rico",null,null,null,null,null,"Chippewa Cree Indians of the Rocky Boy's Reservation, MT"]
[null,null,null,"Qatar",null,null,null,null,null,"Chippewas of Georgina Island First Nation"]
[null,null,null,"Reunion",null,null,null,null,null,"Chippewas of Kettle and Stony Point First Nation"]
[null,null,null,"Romania",null,null,null,null,null,"Chippewas of Nawash First Nation"]
[null,null,null,"Russian Federation",null,null,null,null,null,"Chippewas of Rama First Nation"]
[null,null,null,"Rwanda",null,null,null,null,null,"Chippewas of the Thames First Nation"]
[null,null,null,"Western Sahara",null,null,null,null,null,"Chitimacha Tribe of Louisiana"]
[null,null,null,"Saint Barthelemy",null,null,null,null,null,"Christina River Dene Nation Council"]
[null,null,null,"Saint Helena, Ascension and Tristan da Cunha",null,null,null,null,null,"Chuloonawick Native Village"]
[null,null,null,"Saint Kitts and Nevis",null,null,null,null,null,"Circle Native Community"]
[null,null,null,"Saint Lucia",null,null,null,null,null,"Citizen Potawatomi Nation (Oklahoma)"]
[null,null,null,"Saint Martin (French Part)",null,null,null,null,null,"Clearwater River Dene Nation"]
[null,null,null,"Saint Pierre and Miquelon",null,null,null,null,null,"Cloverdale Rancheria of Pomo Indians of California"]
[null,null,null,"Saint Vincent and the Grenadines",null,null,null,null,null,"Cocopah Tribe of Arizona"]
[null,null,null,"Samoa",null,null,null,null,null,"Coeur D'Alene Tribe"]
[null,null,null,"San Marino",null,null,null,null,null,"Cold Lake First Nations"]
[null,null,null,"Sao Tome and Principe",null,null,null,null,null,"Cold Springs Rancheria of Mono Indians of California"]
[null,null,null,"Saudi Arabia",null,null,null,null,null,"Coldwater Indian Band"]
[null,null,null,"Senegal",null,null,null,null,null,"Colorado River Indian Tribes of the Colorado Indian Reservation, Arizona and California"]
[null,null,null,"Serbia",null,null,null,null,null,"Columbia Lake First Nation"]
[null,null,null,"Seychelles",null,null,null,null,null,"Comanche Nation, Oklahoma"]
[null,null,null,"Sierra Leone",null,null,null,null,null,"Communauté anicinape de Kitcisakik"]
[null,null,null,"Singapore",null,null,null,null,null,"Confederated Salish & Kootenai Tribes of the Flathead Reservation"]
[null,null,null,"Sint Maarten (Dutch Part)",null,null,null,null,null,"Confederated Tribes and Bands of the Yakama Nation"]
[null,null,null,"Slovakia",null,null,null,null,null,"Confederated Tribes of Coos, Lower Umpqua and Siuslaw Indians"]
[null,null,null,"Slovenia",null,null,null,null,null,"Confederated Tribes of Siletz Indians of Oregon"]
[null,null,null,"Solomon Islands",null,null,null,null,null,"Confederated Tribes of the Chehalis Reservation"]
[null,null,null,"Somalia",null,null,null,null,null,"Confederated Tribes of the Colville Reservation"]
[null,null,null,"Somaliland",null,null,null,null,null,"Confederated Tribes of the Goshute Reservation, Nevada and Utah"]
[null,null,null,"South Africa",null,null,null,null,null,"Confederated Tribes of the Grand Ronde Community of Oregon"]
[null,null,null,"South Georgia and the South Sandwich Islands",null,null,null,null,null,"Confederated Tribes of the Umatilla Indian Reservation"]
[null,null,null,"South Ossetia",null,null,null,null,null,"Confederated Tribes of the Warm Springs Reservation of Oregon"]
[null,null,null,"South Sudan",null,null,null,null,null,"Conklin Metis Local 193"]
[null,null,null,"Spain",null,null,null,null,null,"Conklin Resource Development Advisory Committee"]
[null,null,null,"Sri Lanka",null,null,null,null,null,"Conseil de bande Anishnabe de Lac-Simon"]
[null,null,null,"Sudan",null,null,null,null,null,"Conseil de la Nation Atikamekw (Atikamekw Sipi Tribal Council)"]
[null,null,null,"Suriname",null,null,null,null,null,"Conseil de la Première Nation Abitibiwinni"]
[null,null,null,"Svalbard and Jan Mayen",null,null,null,null,null,"Conseil de la Première Nation des Innus Essipit"]
[null,null,null,"Swaziland",null,null,null,null,null,"Conseil des Abénakis d’Odanak"]
[null,null,null,"Sweden",null,null,null,null,null,"Conseil des Abénakis de Wôlinak"]
[null,null,null,"Switzerland",null,null,null,null,null,"Conseil des Anicinapek de Kitcisakik"]
[null,null,null,"Syrian Arab Republic",null,null,null,null,null,"Conseil des Atikamekw de Manawan"]
[null,null,null,"Taiwan, Province of China",null,null,null,null,null,"Conseil des Atikamekw de Opitciwan"]
[null,null,null,"Tajikistan",null,null,null,null,null,"Conseil des Atikamekw de Wemotaci"]
[null,null,null,"Tanzania, United Republic of",null,null,null,null,null,"Conseil des Innu de Ekuanitshit"]
[null,null,null,"Thailand",null,null,null,null,null,"Conseil des Innus de Nutashkuan"]
[null,null,null,"Timor-Leste",null,null,null,null,null,"Conseil des innus de Pessamit"]
[null,null,null,"Togo",null,null,null,null,null,"Conseil des innus de Pessamit "]
[null,null,null,"Tokelau",null,null,null,null,null,"Conseil des jeunes Pekuakamiulnuatsh"]
[null,null,null,"Tonga",null,null,null,null,null,"Conseil Des Montagnais Du Lac-St-Jean (Mashteuiatsh)"]
[null,null,null,"Transnistria",null,null,null,null,null,"Constance Lake First Nation"]
[null,null,null,"Trinidad and Tobago",null,null,null,null,null,"Cook's Ferry Indian Band"]
[null,null,null,"Tunisia",null,null,null,null,null,"Coquille Indian Tribe"]
[null,null,null,"Turkey",null,null,null,null,null,"Cote First Nation"]
[null,null,null,"Turkmenistan",null,null,null,null,null,"Couchiching First Nation"]
[null,null,null,"Turks and Caicos Islands",null,null,null,null,null,"Council of Yukon First Nations"]
[null,null,null,"Tuvalu",null,null,null,null,null,"Coushatta Tribe of Louisiana"]
[null,null,null,"Uganda",null,null,null,null,null,"Cow Creek Band of Umpqua Tribe of Indians"]
[null,null,null,"Ukraine",null,null,null,null,null,"Cowessess First Nation"]
[null,null,null,"United Arab Emirates",null,null,null,null,null,"Cowichan First Nation"]
[null,null,null,"United Kingdom",null,null,null,null,null,"Cowlitz Indian Tribe"]
[null,null,null,"United States Minor Outlying Islands",null,null,null,null,null,"Coyote Valley Band of Pomo Indians of California"]
[null,null,null,"Uruguay",null,null,null,null,null,"Craig Tribal Association"]
[null,null,null,"Uzbekistan",null,null,null,null,null,"Cree Nation of Chisasibi"]
[null,null,null,"Vanuatu",null,null,null,null,null,"Cree Nation of Mistissini"]
[null,null,null,"Venezuela, Bolivarian Republic of",null,null,null,null,null,"Cree Nation of Nemaska"]
[null,null,null,"Vietnam",null,null,null,null,null,"Cree Nation of Wemindji"]
[null,null,null,"Virgin Islands, British",null,null,null,null,null,"Cross Lake Band of Indians"]
[null,null,null,"Virgin Islands, US",null,null,null,null,null,"Crow Creek Sioux Tribe of the Crow Creek Reservation, SD"]
[null,null,null,"Wallis and Futuna",null,null,null,null,null,"Crow Tribe of Montana"]
[null,null,null,"Yemen",null,null,null,null,null,"Cumberland House Cree Nation"]
[null,null,null,"Zambia",null,null,null,null,null,"Curve Lake First Nation"]
[null,null,null,"Zimbabwe",null,null,null,null,null,"Curyung Tribal Council"]
[null,null,null,null,null,null,null,null,null,"Dakota Nations of Manitoba"]
[null,null,null,null,null,null,null,null,null,"Dakota Ojibway Tribal Council"]
[null,null,null,null,null,null,null,null,null,"Dakota Plains First Nation"]
[null,null,null,null,null,null,null,null,null,"Dakota Plains Wahpeton Nation"]
[null,null,null,null,null,null,null,null,null,"Dakota Tipi First Nation"]
[null,null,null,null,null,null,null,null,null,"Da'naxda'xw First Nation"]
[null,null,null,null,null,null,null,null,null,"Dark House"]
[null,null,null,null,null,null,null,null,null,"Dauphin River First Nation"]
[null,null,null,null,null,null,null,null,null,"Dawson Creek Metis Federation"]
[null,null,null,null,null,null,null,null,null,"Day Star First Nation"]
[null,null,null,null,null,null,null,null,null,"Dease River First Nation"]
[null,null,null,null,null,null,null,null,null,"Death Valley Timbi-sha Shoshone Tribe"]
[null,null,null,null,null,null,null,null,null,"Dechi Laot'i First Nations"]
[null,null,null,null,null,null,null,null,null,"Deer Lake First Nation"]
[null,null,null,null,null,null,null,null,null,"Deh Gáh Got'ie Dene First Nation"]
[null,null,null,null,null,null,null,null,null,"Delaware Nation"]
[null,null,null,null,null,null,null,null,null,"Delaware Tribe of Indians"]
[null,null,null,null,null,null,null,null,null,"Deline First Nation"]
[null,null,null,null,null,null,null,null,null,"Dene Tha' First Nation"]
[null,null,null,null,null,null,null,null,null,"Deninu K'ue First Nation"]
[null,null,null,null,null,null,null,null,null,"Ditidaht First Nation"]
[null,null,null,null,null,null,null,null,null,"Dog Rib Rae"]
[null,null,null,null,null,null,null,null,null,"Doig River First Nation"]
[null,null,null,null,null,null,null,null,null,"Dokis First Nation"]
[null,null,null,null,null,null,null,null,null,"Douglas First Nation"]
[null,null,null,null,null,null,null,null,null,"Drayton Valley Metis Local 888"]
[null,null,null,null,null,null,null,null,null,"Driftpile Cree Nation"]
[null,null,null,null,null,null,null,null,null,"Dry Creek Rancheria Band of Pomo Indians, California"]
[null,null,null,null,null,null,null,null,null,"Duckwater Shoshone Tribe of the Duckwater Reservation, Nevada"]
[null,null,null,null,null,null,null,null,null,"Duncan's First Nation"]
[null,null,null,null,null,null,null,null,null,"Dzawada'enuxw First Nation"]
[null,null,null,null,null,null,null,null,null,"Eabametoong First Nation"]
[null,null,null,null,null,null,null,null,null,"Eagle Lake First Nation"]
[null,null,null,null,null,null,null,null,null,"Eagle Village First Nation – Kipawa"]
[null,null,null,null,null,null,null,null,null,"East Prairie Metis Settlement"]
[null,null,null,null,null,null,null,null,null,"Eastern Band of Cherokee Indians"]
[null,null,null,null,null,null,null,null,null,"Eastern Shawnee Tribe of Oklahoma"]
[null,null,null,null,null,null,null,null,null,"Eastern Shoshone Tribe of the Wind River Reservation, Wyoming"]
[null,null,null,null,null,null,null,null,null,"Eastmain"]
[null,null,null,null,null,null,null,null,null,"Ebb and Flow First Nation"]
[null,null,null,null,null,null,null,null,null,"Eel Ground First Nation"]
[null,null,null,null,null,null,null,null,null,"Eel River Bar First Nation"]
[null,null,null,null,null,null,null,null,null,"Egegik Village"]
[null,null,null,null,null,null,null,null,null,"Ehattesaht First Nation"]
[null,null,null,null,null,null,null,null,null,"Eklutna Native Village"]
[null,null,null,null,null,null,null,null,null,"Elem Indian Colony of Pomo Indians of the Sulphur Bank Rancheria, California"]
[null,null,null,null,null,null,null,null,null,"Elizabeth Metis Settlement"]
[null,null,null,null,null,null,null,null,null,"Elk Valley Rancheria, California"]
[null,null,null,null,null,null,null,null,null,"Elsipogtog First Nation"]
[null,null,null,null,null,null,null,null,null,"Ely Shoshone Tribe of Nevada"]
[null,null,null,null,null,null,null,null,null,"Emmonak Village"]
[null,null,null,null,null,null,null,null,null,"English River First Nation"]
[null,null,null,null,null,null,null,null,null,"Enoch Cree Nation"]
[null,null,null,null,null,null,null,null,null,"Enterprise Rancheria of Maidu Indians of California"]
[null,null,null,null,null,null,null,null,null,"Ermineskin Cree Nation"]
[null,null,null,null,null,null,null,null,null,"Esdilagh First Nation"]
[null,null,null,null,null,null,null,null,null,"Esgenoopetitj (Burnt Church) First Nation"]
[null,null,null,null,null,null,null,null,null,"Eskasoni First Nation"]
[null,null,null,null,null,null,null,null,null,"Esk'etemc"]
[null,null,null,null,null,null,null,null,null,"Esquimalt Nation"]
[null,null,null,null,null,null,null,null,null,"Evansville Village (aka Bettles Field)"]
[null,null,null,null,null,null,null,null,null,"Ewiiaapaayp Band of Kumeyaay Indians, California"]
[null,null,null,null,null,null,null,null,null,"Federated Indians of Graton Rancheria, California"]
[null,null,null,null,null,null,null,null,null,"Federation of Saskatchewan Indian Nations"]
[null,null,null,null,null,null,null,null,null,"File Hills Qu'Appelle Tribal Council"]
[null,null,null,null,null,null,null,null,null,"First Nation of Nacho Nyak Dun"]
[null,null,null,null,null,null,null,null,null,"Fisher River Cree Nation"]
[null,null,null,null,null,null,null,null,null,"Fishing Lake First Nation"]
[null,null,null,null,null,null,null,null,null,"Fishing Lake Metis Settlement"]
[null,null,null,null,null,null,null,null,null,"Flandreau Santee Sioux Tribe of South Dakota"]
[null,null,null,null,null,null,null,null,null,"Flying Dust First Nation"]
[null,null,null,null,null,null,null,null,null,"Flying Post First Nation"]
[null,null,null,null,null,null,null,null,null,"Fond du Lac Band of Lake Superior Chippewa"]
[null,null,null,null,null,null,null,null,null,"Foothills Ojibway First Nation"]
[null,null,null,null,null,null,null,null,null,"Forest County Potawatomi Community, Wisconsin"]
[null,null,null,null,null,null,null,null,null,"Fort Albany First Nation"]
[null,null,null,null,null,null,null,null,null,"Fort Alexander First Nation"]
[null,null,null,null,null,null,null,null,null,"Fort Belknap Indian Community"]
[null,null,null,null,null,null,null,null,null,"Fort Bidwell Indian Community of the Fort Bidwell Reservation of California"]
[null,null,null,null,null,null,null,null,null,"Fort Chipewyan Metis Local 125"]
[null,null,null,null,null,null,null,null,null,"Fort Folly First Nation"]
[null,null,null,null,null,null,null,null,null,"Fort Good Hope"]
[null,null,null,null,null,null,null,null,null,"Fort Independence Indian Community of Paiute Indians of the Fort Independence Reservation, California"]
[null,null,null,null,null,null,null,null,null,"Fort Liard Metis Local 67"]
[null,null,null,null,null,null,null,null,null,"Fort McDermitt Paiute and Shoshone Tribes of the Fort McDermitt Indian Reservation, Nevada and Oregon"]
[null,null,null,null,null,null,null,null,null,"Fort McDowell Yavapai Nation, Arizona"]
[null,null,null,null,null,null,null,null,null,"Fort McKay First Nation"]
[null,null,null,null,null,null,null,null,null,"Fort McKay Metis Community Association"]
[null,null,null,null,null,null,null,null,null,"Fort McKay Metis Local 63"]
[null,null,null,null,null,null,null,null,null,"Fort McKay Metis Nation"]
[null,null,null,null,null,null,null,null,null,"Fort McMurray #468 First Nation"]
[null,null,null,null,null,null,null,null,null,"Fort McMurray Metis"]
[null,null,null,null,null,null,null,null,null,"Fort McMurray Metis Local #1935"]
[null,null,null,null,null,null,null,null,null,"Fort McMurray Metis Local #2020"]
[null,null,null,null,null,null,null,null,null,"Fort Mojave Indian Tribe of Arizona, California & Nevada"]
[null,null,null,null,null,null,null,null,null,"Fort Nelson First Nation"]
[null,null,null,null,null,null,null,null,null,"Fort Nelson Metis Association"]
[null,null,null,null,null,null,null,null,null,"Fort Severn First Nation"]
[null,null,null,null,null,null,null,null,null,"Fort Sill Apache Tribe of Oklahoma"]
[null,null,null,null,null,null,null,null,null,"Fort St John Metis Society"]
[null,null,null,null,null,null,null,null,null,"Fort Vermilion Metis Local 74"]
[null,null,null,null,null,null,null,null,null,"Fort William First Nation"]
[null,null,null,null,null,null,null,null,null,"Fox Lake Cree Nation"]
[null,null,null,null,null,null,null,null,null,"Frog Lake First Nation"]
[null,null,null,null,null,null,null,null,null,"Galena Village (aka Louden Village)"]
[null,null,null,null,null,null,null,null,null,"Gambler First Nation"]
[null,null,null,null,null,null,null,null,null,"Gameti First Nation"]
[null,null,null,null,null,null,null,null,null,"Garden Hill First Nation"]
[null,null,null,null,null,null,null,null,null,"Garden River First Nation"]
[null,null,null,null,null,null,null,null,null,"George Gordon First Nation"]
[null,null,null,null,null,null,null,null,null,"Gift Lake Metis Settlement"]
[null,null,null,null,null,null,null,null,null,"Gila River Indian Community of the Gila River Indian Reservation, Arizona"]
[null,null,null,null,null,null,null,null,null,"Ginoogaming First Nation"]
[null,null,null,null,null,null,null,null,null,"Ginoogaming First Nations' Collective"]
[null,null,null,null,null,null,null,null,null,"Gitanmaax Band"]
[null,null,null,null,null,null,null,null,null,"Gitanyow First Nation"]
[null,null,null,null,null,null,null,null,null,"Gitga'at First Nation"]
[null,null,null,null,null,null,null,null,null,"Gitluudaahlxw"]
[null,null,null,null,null,null,null,null,null,"Gitmaxmak'ay Nisga'a Society"]
[null,null,null,null,null,null,null,null,null,"Gitsegukla First Nation"]
[null,null,null,null,null,null,null,null,null,"Gitwangak Indian Band"]
[null,null,null,null,null,null,null,null,null,"Gitxaala Nation"]
[null,null,null,null,null,null,null,null,null,"Gitxsan First Nation"]
[null,null,null,null,null,null,null,null,null,"Glen Vowell Indian Band"]
[null,null,null,null,null,null,null,null,null,"Glooscap First Nation"]
[null,null,null,null,null,null,null,null,null,"God's Lake First Nation"]
[null,null,null,null,null,null,null,null,null,"Grand Conseil De la Nation Waban-Aki"]
[null,null,null,null,null,null,null,null,null,"Grand Council Treaty #3"]
[null,null,null,null,null,null,null,null,null,"Grand Traverse Band of Ottawa & Chippewa Indians, Michigan"]
[null,null,null,null,null,null,null,null,null,"Grande Cache Metis Local 1994"]
[null,null,null,null,null,null,null,null,null,"Grande Prairie Metis Local 1990"]
[null,null,null,null,null,null,null,null,null,"Grassy Narrows First Nation"]
[null,null,null,null,null,null,null,null,null,"Greenville Rancheria"]
[null,null,null,null,null,null,null,null,null,"Grindstone Indian Rancheria of Wintun-Wailaki Indians of California"]
[null,null,null,null,null,null,null,null,null,"Guidiville Rancheria of California"]
[null,null,null,null,null,null,null,null,null,"Gulkana Village"]
[null,null,null,null,null,null,null,null,null,"Gull Bay First Nation"]
[null,null,null,null,null,null,null,null,null,"Gunn Metis Local 55"]
[null,null,null,null,null,null,null,null,null,"Gwa'Sala-Nakwaxda'xw Nations"]
[null,null,null,null,null,null,null,null,null,"Gwawaenuk Tribe"]
[null,null,null,null,null,null,null,null,null,"Gwichya Gwich'in"]
[null,null,null,null,null,null,null,null,null,"Gwii Yeehl"]
[null,null,null,null,null,null,null,null,null,"Gyetm Galdoo"]
[null,null,null,null,null,null,null,null,null,"Habematolel Pomo of Upper Lake, California"]
[null,null,null,null,null,null,null,null,null,"Hagwilget Village First Nation"]
[null,null,null,null,null,null,null,null,null,"Haisla Nation"]
[null,null,null,null,null,null,null,null,null,"Halalt First Nation"]
[null,null,null,null,null,null,null,null,null,"Halfway River First Nation"]
[null,null,null,null,null,null,null,null,null,"Hannahville Indian Community, Michigan"]
[null,null,null,null,null,null,null,null,null,"Hatchet Lake Dene Nation"]
[null,null,null,null,null,null,null,null,null,"Hatchet Lake Denesuline First Nation"]
[null,null,null,null,null,null,null,null,null,"Havasupai Tribe of the Havasupai Reservation, Arizona"]
[null,null,null,null,null,null,null,null,null,"Healy Lake Village"]
[null,null,null,null,null,null,null,null,null,"Heart Lake First Nation"]
[null,null,null,null,null,null,null,null,null,"Heiltsuk Nation"]
[null,null,null,null,null,null,null,null,null,"Henvey Inlet First Nation"]
[null,null,null,null,null,null,null,null,null,"Hesquiaht First Nation"]
[null,null,null,null,null,null,null,null,null,"Hiawatha First Nation"]
[null,null,null,null,null,null,null,null,null,"High Bar First Nation"]
[null,null,null,null,null,null,null,null,null,"Historic Saugeen Metis"]
[null,null,null,null,null,null,null,null,null,"Ho-Chunk Nation of Wisconsin"]
[null,null,null,null,null,null,null,null,null,"Hoh Indian Tribe"]
[null,null,null,null,null,null,null,null,null,"Hollow Water First Nation"]
[null,null,null,null,null,null,null,null,null,"Holy Cross Village"]
[null,null,null,null,null,null,null,null,null,"Homalco First Nation"]
[null,null,null,null,null,null,null,null,null,"Hoonah Indian Association"]
[null,null,null,null,null,null,null,null,null,"Hoopa Valley Tribe, California"]
[null,null,null,null,null,null,null,null,null,"Hopi Tribe of Arizona"]
[null,null,null,null,null,null,null,null,null,"Hopland Band of Pomo Indians, California"]
[null,null,null,null,null,null,null,null,null,"Hornepayne First Nation"]
[null,null,null,null,null,null,null,null,null,"Horse Lake First Nation"]
[null,null,null,null,null,null,null,null,null,"Houlton Band of Maliseet Indians"]
[null,null,null,null,null,null,null,null,null,"Hualapai Indian Tribe of the Hualapai Indian Reservation, Arizona"]
[null,null,null,null,null,null,null,null,null,"Hughes Village"]
[null,null,null,null,null,null,null,null,null,"Hupacasath First Nation"]
[null,null,null,null,null,null,null,null,null,"Huron-Wendat Nation (Wendake)"]
[null,null,null,null,null,null,null,null,null,"Huslia Village"]
[null,null,null,null,null,null,null,null,null,"Huu-ay-aht First Nations"]
[null,null,null,null,null,null,null,null,null,"Hydaburg Cooperative Association"]
[null,null,null,null,null,null,null,null,null,"Igiugig Village"]
[null,null,null,null,null,null,null,null,null,"Iipay Nation of Santa Ysabel, California"]
[null,null,null,null,null,null,null,null,null,"Inaja Band of Diegueno Mission Indians of the Inaja and Cosmit Reservation, California"]
[null,null,null,null,null,null,null,null,null,"Indian Head Metis Nation"]
[null,null,null,null,null,null,null,null,null,"Indian Island First Nation"]
[null,null,null,null,null,null,null,null,null,"Innu Takuaikan Uashat Mak Mani-Utenam"]
[null,null,null,null,null,null,null,null,null,"Innue Essipit"]
[null,null,null,null,null,null,null,null,null,"Inupiat Community of the Arctic Slope"]
[null,null,null,null,null,null,null,null,null,"Inuvik Native"]
[null,null,null,null,null,null,null,null,null,"Ione Band of Miwok Indians of California"]
[null,null,null,null,null,null,null,null,null,"Iowa Tribe of Kansas & Nebraska"]
[null,null,null,null,null,null,null,null,null,"Iowa Tribe of Oklahoma"]
[null,null,null,null,null,null,null,null,null,"Iqurmuit Traditional Council"]
[null,null,null,null,null,null,null,null,null,"Iskatewizaagegan 39 Independent First Nation"]
[null,null,null,null,null,null,null,null,null,"Iskut First Nation Band Government"]
[null,null,null,null,null,null,null,null,null,"Ivanof Bay Tribe"]
[null,null,null,null,null,null,null,null,null,"Jackson Band of Miwuk Indians"]
[null,null,null,null,null,null,null,null,null,"James Smith Cree Nation"]
[null,null,null,null,null,null,null,null,null,"Jamestown S'Klallam Tribe"]
[null,null,null,null,null,null,null,null,null,"Jamul Indian Village of California"]
[null,null,null,null,null,null,null,null,null,"Jean Marie River First Nation"]
[null,null,null,null,null,null,null,null,null,"Jena Band of Choctaw Indians"]
[null,null,null,null,null,null,null,null,null,"Jicarilla Apache Nation, New Mexico"]
[null,null,null,null,null,null,null,null,null,"Ka:'yu:'k't'h'/Che:k:tles7et'h' First Nations"]
[null,null,null,null,null,null,null,null,null,"Ka'a'gee Tu First Nation"]
[null,null,null,null,null,null,null,null,null,"Kaguyak Village"]
[null,null,null,null,null,null,null,null,null,"Kahkewistahaw First Nation"]
[null,null,null,null,null,null,null,null,null,"Kaibab Band of Paiute Indians of the Kaibab Indian Reservation, Arizona"]
[null,null,null,null,null,null,null,null,null,"Kaktovik Village (aka Barter Island)"]
[null,null,null,null,null,null,null,null,null,"Kalispel Indian Community of the Kalispel Reservation"]
[null,null,null,null,null,null,null,null,null,"Kanaka Bar Indian Band"]
[null,null,null,null,null,null,null,null,null,"Kapawe'no First Nation"]
[null,null,null,null,null,null,null,null,null,"Kapuskasing"]
[null,null,null,null,null,null,null,null,null,"Karuk Tribe"]
[null,null,null,null,null,null,null,null,null,"Kasabonika Lake First Nation"]
[null,null,null,null,null,null,null,null,null,"Kashechewan First Nation"]
[null,null,null,null,null,null,null,null,null,"Kashia Band of Pomo Indians of the Stewarts Point Rancheria, California"]
[null,null,null,null,null,null,null,null,null,"Kasigluk Traditional Elders Council"]
[null,null,null,null,null,null,null,null,null,"K'atlodeeche First Nation"]
[null,null,null,null,null,null,null,null,null,"Katzie First Nation"]
[null,null,null,null,null,null,null,null,null,"KAW Nation"]
[null,null,null,null,null,null,null,null,null,"Kaw Nation, Oklahoma"]
[null,null,null,null,null,null,null,null,null,"Kawacatoose First Nation"]
[null,null,null,null,null,null,null,null,null,"Kebaowek First Nation"]
[null,null,null,null,null,null,null,null,null,"Kee Tas Kee Now Tribal Council"]
[null,null,null,null,null,null,null,null,null,"Keeseekoose First Nation"]
[null,null,null,null,null,null,null,null,null,"Keeseekoowenin Ojibway First Nation"]
[null,null,null,null,null,null,null,null,null,"Kee-Way-Win"]
[null,null,null,null,null,null,null,null,null,"Keewaywin First Nation"]
[null,null,null,null,null,null,null,null,null,"Kehewin Cree Nation"]
[null,null,null,null,null,null,null,null,null,"Kelly Lake Cree Nation"]
[null,null,null,null,null,null,null,null,null,"Kelly Lake First Nation"]
[null,null,null,null,null,null,null,null,null,"Kelly Lake Metis Settlement Society"]
[null,null,null,null,null,null,null,null,null,"Kenaitze Indian Tribe"]
[null,null,null,null,null,null,null,null,null,"Kesyehot'ine First Nation"]
[null,null,null,null,null,null,null,null,null,"Ketchikan Indian Corporation"]
[null,null,null,null,null,null,null,null,null,"Kewa Pueblo"]
[null,null,null,null,null,null,null,null,null,"Keweenaw Bay Indian Community, Michigan"]
[null,null,null,null,null,null,null,null,null,"Kialegee Tribal Town"]
[null,null,null,null,null,null,null,null,null,"Kiashke Zaaging Anishinaabek (Gull Bay First Nation)"]
[null,null,null,null,null,null,null,null,null,"Kickapoo Traditional Tribe of Texas"]
[null,null,null,null,null,null,null,null,null,"Kickapoo Tribe of Indians of the Kickapoo Reservation in Kansas"]
[null,null,null,null,null,null,null,null,null,"Kickapoo Tribe of Oklahoma"]
[null,null,null,null,null,null,null,null,null,"Kijicho Manito Madaouskarini Algonquin First Nation"]
[null,null,null,null,null,null,null,null,null,"Kikino Metis Settlement"]
[null,null,null,null,null,null,null,null,null,"King Island Native Community"]
[null,null,null,null,null,null,null,null,null,"King Salmon Tribe"]
[null,null,null,null,null,null,null,null,null,"Kingfisher First Nation"]
[null,null,null,null,null,null,null,null,null,"Kingsclear First Nation"]
[null,null,null,null,null,null,null,null,null,"Kinistin Saulteaux Nation"]
[null,null,null,null,null,null,null,null,null,"Kinonjeoshtegon First Nation"]
[null,null,null,null,null,null,null,null,null,"Kiowa Indian Tribe of Oklahoma"]
[null,null,null,null,null,null,null,null,null,"Kispiox"]
[null,null,null,null,null,null,null,null,null,"Kitasoo / Xai’xais"]
[null,null,null,null,null,null,null,null,null,"Kitchenuhmaykoosib Inninuwug First Nation"]
[null,null,null,null,null,null,null,null,null,"Kitigan Zibi Anishinabeg"]
[null,null,null,null,null,null,null,null,null,"Kitselas First Nation"]
[null,null,null,null,null,null,null,null,null,"Kitsumkalum Indian Band"]
[null,null,null,null,null,null,null,null,null,"Klahoose First Nation"]
[null,null,null,null,null,null,null,null,null,"Klamath Tribes"]
[null,null,null,null,null,null,null,null,null,"Klawock Cooperative Association"]
[null,null,null,null,null,null,null,null,null,"Kletsel Dehe Band of Wintun Indians"]
[null,null,null,null,null,null,null,null,null,"KliiyeemLaxHa"]
[null,null,null,null,null,null,null,null,null,"Kluane First Nation"]
[null,null,null,null,null,null,null,null,null,"Knik Tribe"]
[null,null,null,null,null,null,null,null,null,"Koi Nation of Northern California"]
[null,null,null,null,null,null,null,null,null,"Kokhanok Village"]
[null,null,null,null,null,null,null,null,null,"K'ómoks First Nation"]
[null,null,null,null,null,null,null,null,null,"Konadaha Seneca First Nation"]
[null,null,null,null,null,null,null,null,null,"Kootenai Tribe of Idaho"]
[null,null,null,null,null,null,null,null,null,"Koyukuk Native Village"]
[null,null,null,null,null,null,null,null,null,"Ktunaxa Nation Council"]
[null,null,null,null,null,null,null,null,null,"Kwadacha Nation"]
[null,null,null,null,null,null,null,null,null,"Kwakiutl First Nation"]
[null,null,null,null,null,null,null,null,null,"Kwanlin Dun First Nation"]
[null,null,null,null,null,null,null,null,null,"Kwantlen First Nation"]
[null,null,null,null,null,null,null,null,null,"Kwaw-kwaw-Apilt First Nation"]
[null,null,null,null,null,null,null,null,null,"Kwiakah First Nation"]
[null,null,null,null,null,null,null,null,null,"Kwikwasut'inuxw Haxwa'mis First Nation"]
[null,null,null,null,null,null,null,null,null,"Kwikwetlem First Nation"]
[null,null,null,null,null,null,null,null,null,"Kwilmu'Kw Maw-Klusuaqn (Mi'kmaq Rights Initiative)"]
[null,null,null,null,null,null,null,null,null,"La Jolla Band of Luiseno Indians, California"]
[null,null,null,null,null,null,null,null,null,"La Nation Innu Matimekush-Lac John"]
[null,null,null,null,null,null,null,null,null,"La Nation Micmac de Gespeg"]
[null,null,null,null,null,null,null,null,null,"La Posta Band of Diegueno Mission Indians of the La Posta Indian Reservation, California"]
[null,null,null,null,null,null,null,null,null,"La Première Nation Micmac de Gespeg"]
[null,null,null,null,null,null,null,null,null,"Lac Courte Oreilles Band of Lake Superior Chippewa Indians of Wisconsin"]
[null,null,null,null,null,null,null,null,null,"Lac Des Milles Lacs First Nation"]
[null,null,null,null,null,null,null,null,null,"Lac du Flambeau Band of Lake Superior Chippewa Indians of Wisconsin"]
[null,null,null,null,null,null,null,null,null,"Lac La Biche Metis Local 2097"]
[null,null,null,null,null,null,null,null,null,"Lac La Croix First Nation"]
[null,null,null,null,null,null,null,null,null,"Lac La Ronge Indian Band"]
[null,null,null,null,null,null,null,null,null,"Lac Seul First Nation"]
[null,null,null,null,null,null,null,null,null,"Lac Ste. Anne Metis (Gunn Metis Local 55)"]
[null,null,null,null,null,null,null,null,null,"Lac Vieux Desert Band of Lake Superior Chippewa Indians of MI"]
[null,null,null,null,null,null,null,null,null,"Lake Babine First Nation"]
[null,null,null,null,null,null,null,null,null,"Lake Cowichan First Nation"]
[null,null,null,null,null,null,null,null,null,"Lake Manitoba First Nation"]
[null,null,null,null,null,null,null,null,null,"Lake St. Martin First Nation"]
[null,null,null,null,null,null,null,null,null,"Lakeland Metis Local 1909"]
[null,null,null,null,null,null,null,null,null,"Larr Management Corp."]
[null,null,null,null,null,null,null,null,null,"Las Vegas Tribe of Paiute Indians of the Las Vegas Indian Colony, Nevada"]
[null,null,null,null,null,null,null,null,null,"Lax Kw'alaams Band"]
[null,null,null,null,null,null,null,null,null,"le Grand Conseil de la Nation Waban-Aki"]
[null,null,null,null,null,null,null,null,null,"Lennox Island First Nation"]
[null,null,null,null,null,null,null,null,null,"Leq'a: mel First Nation"]
[null,null,null,null,null,null,null,null,null,"Les Atikamekw De Manawan"]
[null,null,null,null,null,null,null,null,null,"Les Innus de Ekuanitshit"]
[null,null,null,null,null,null,null,null,null,"Lesser Slave Lake Indian Regional Council"]
[null,null,null,null,null,null,null,null,null,"Lethbridge Metis Local 2003"]
[null,null,null,null,null,null,null,null,null,"Levelock Village"]
[null,null,null,null,null,null,null,null,null,"Lheidli T'enneh First Nation"]
[null,null,null,null,null,null,null,null,null,"Lhoosk'uz Dene Nation"]
[null,null,null,null,null,null,null,null,null,"Lhtako Dene Nation"]
[null,null,null,null,null,null,null,null,null,"Liard First Nation"]
[null,null,null,null,null,null,null,null,null,"Liidlii Kue First Nation"]
[null,null,null,null,null,null,null,null,null,"Lil'wat Nation"]
[null,null,null,null,null,null,null,null,null,"Lime Village"]
[null,null,null,null,null,null,null,null,null,"Listuguj Mi'gmaq First Nation"]
[null,null,null,null,null,null,null,null,null,"Little Black Bear First Nation"]
[null,null,null,null,null,null,null,null,null,"Little Grand Rapids First Nation"]
[null,null,null,null,null,null,null,null,null,"Little Pine First Nation"]
[null,null,null,null,null,null,null,null,null,"Little Red River Cree Nation"]
[null,null,null,null,null,null,null,null,null,"Little River Band of Ottawa Indians, Michigan"]
[null,null,null,null,null,null,null,null,null,"Little Salmon/Carmacks First Nation"]
[null,null,null,null,null,null,null,null,null,"Little Saskatchewan First Nation"]
[null,null,null,null,null,null,null,null,null,"Little Shuswap Lake Indian Band"]
[null,null,null,null,null,null,null,null,null,"Little Traverse Bay Bands of Odawa Indians, Michigan"]
[null,null,null,null,null,null,null,null,null,"Lone Pine Paiute-Shoshone Tribe"]
[null,null,null,null,null,null,null,null,null,"Long Lake #58 First Nation"]
[null,null,null,null,null,null,null,null,null,"Long Plain First Nation"]
[null,null,null,null,null,null,null,null,null,"Long Point First Nation"]
[null,null,null,null,null,null,null,null,null,"Loon River Cree"]
[null,null,null,null,null,null,null,null,null,"Loon River First Nation"]
[null,null,null,null,null,null,null,null,null,"Los Coyotes Band of Cahuilla & Cupeno Indians, California"]
[null,null,null,null,null,null,null,null,null,"Louis Bull Tribe"]
[null,null,null,null,null,null,null,null,null,"Lovelock Paiute Tribe of the Lovelock Indian Colony, Nevada"]
[null,null,null,null,null,null,null,null,null,"Lower Brule Sioux Tribe of the Lower Brule Reservation, SD"]
[null,null,null,null,null,null,null,null,null,"Lower Cayuga"]
[null,null,null,null,null,null,null,null,null,"Lower Elwha Tribal Community"]
[null,null,null,null,null,null,null,null,null,"Lower Kootenay First Nation"]
[null,null,null,null,null,null,null,null,null,"Lower Kootenay Indian Band"]
[null,null,null,null,null,null,null,null,null,"Lower Mohawk Six Nations of the Grand River"]
[null,null,null,null,null,null,null,null,null,"Lower Nicola Indian Band"]
[null,null,null,null,null,null,null,null,null,"Lower Similkameen Indian Band"]
[null,null,null,null,null,null,null,null,null,"Lower Sioux Indian Community in the State of Minnesota"]
[null,null,null,null,null,null,null,null,null,"Lubicon Lake Band"]
[null,null,null,null,null,null,null,null,null,"Lucky Man Cree Nation"]
[null,null,null,null,null,null,null,null,null,"Lucky Man First Nation"]
[null,null,null,null,null,null,null,null,null,"Lummi Tribe of the Lummi Reservation"]
[null,null,null,null,null,null,null,null,null,"Lutsel K'e Dene First Nation"]
[null,null,null,null,null,null,null,null,null,"Luutkudziiwus"]
[null,null,null,null,null,null,null,null,null,"Lyackson First Nation"]
[null,null,null,null,null,null,null,null,null,"Lytton First Nation"]
[null,null,null,null,null,null,null,null,null,"Lytton Rancheria of California"]
[null,null,null,null,null,null,null,null,null,"Madawaska Maliseet First Nation"]
[null,null,null,null,null,null,null,null,null,"Magnetewan First Nation"]
[null,null,null,null,null,null,null,null,null,"Makah Indian Tribe of the Makah Indian Reservation"]
[null,null,null,null,null,null,null,null,null,"Makwa Sahgaiehcan First Nation"]
[null,null,null,null,null,null,null,null,null,"Malahat Nation"]
[null,null,null,null,null,null,null,null,null,"Mamalilikulla First Nation"]
[null,null,null,null,null,null,null,null,null,"Mamawesen Tribal Council"]
[null,null,null,null,null,null,null,null,null,"Mamaweswen"]
[null,null,null,null,null,null,null,null,null,"Manchester Band of Pomo Indians of the Manchester Rancheria, California"]
[null,null,null,null,null,null,null,null,null,"Manitoba Metis Federation"]
[null,null,null,null,null,null,null,null,null,"Manitoba Metis Federation Interlake Region"]
[null,null,null,null,null,null,null,null,null,"Manitoba Metis Federation Northwest Region"]
[null,null,null,null,null,null,null,null,null,"Manitoba Metis Federation Southeast Region"]
[null,null,null,null,null,null,null,null,null,"Manitoba Metis Federation Southwest Region"]
[null,null,null,null,null,null,null,null,null,"Manitoba Metis Federation The Pas Region"]
[null,null,null,null,null,null,null,null,null,"Manitoba Metis Federation Thompson Region"]
[null,null,null,null,null,null,null,null,null,"Manitoba Metis Federation Winnipeg Region"]
[null,null,null,null,null,null,null,null,null,"Manley Hot Springs Village"]
[null,null,null,null,null,null,null,null,null,"Manokotak Village"]
[null,null,null,null,null,null,null,null,null,"Manto Sipi Cree Nation"]
[null,null,null,null,null,null,null,null,null,"Manzanita Band of Diegueno Mission Indians of the Manzanita Reservation, Califonria"]
[null,null,null,null,null,null,null,null,null,"Marcel Colomb First Nation"]
[null,null,null,null,null,null,null,null,null,"Marlboro Community Association"]
[null,null,null,null,null,null,null,null,null,"Marten Falls First Nation"]
[null,null,null,null,null,null,null,null,null,"Mashantucket Pequot Indian Tribe"]
[null,null,null,null,null,null,null,null,null,"Mashpee Wampanoag Tribe"]
[null,null,null,null,null,null,null,null,null,"Matachewan First Nation"]
[null,null,null,null,null,null,null,null,null,"Matawa First Nations"]
[null,null,null,null,null,null,null,null,null,"Match-e-be-nash-she-wish Band of Pottawatomi Indians of Michigan"]
[null,null,null,null,null,null,null,null,null,"Mathias Colomb Cree Nation"]
[null,null,null,null,null,null,null,null,null,"Matsqui First Nation"]
[null,null,null,null,null,null,null,null,null,"Mattagami First Nation"]
[null,null,null,null,null,null,null,null,null,"Mattawa North Bay Algonquin First Nation"]
[null,null,null,null,null,null,null,null,null,"McDowell Lake"]
[null,null,null,null,null,null,null,null,null,"McGrath Native Village"]
[null,null,null,null,null,null,null,null,null,"M'Chigeeng First Nation"]
[null,null,null,null,null,null,null,null,null,"McLeod Lake Indian Band"]
[null,null,null,null,null,null,null,null,null,"Mechoopda Indian Tribe of Chico Rancheria, California"]
[null,null,null,null,null,null,null,null,null,"Medicine Hat Metis Local 8"]
[null,null,null,null,null,null,null,null,null,"Membertou First Nation"]
[null,null,null,null,null,null,null,null,null,"Menominee Indian Tribe of Wisconsin"]
[null,null,null,null,null,null,null,null,null,"Mentasta Traditional Council"]
[null,null,null,null,null,null,null,null,null,"Mesa Grande Band of Diegueno Mission Indians of the Mesa Grande Reservation, California"]
[null,null,null,null,null,null,null,null,null,"Mescalero Apache Tribe"]
[null,null,null,null,null,null,null,null,null,"Metepenagiag Mi'kmaq Nation"]
[null,null,null,null,null,null,null,null,null,"Metis - Other (or Unspecified)"]
[null,null,null,null,null,null,null,null,null,"Metis British Columbia Provincial Council Society"]
[null,null,null,null,null,null,null,null,null,"Metis Nation - Saskatchewan"]
[null,null,null,null,null,null,null,null,null,"Metis Nation New Caledonia Society"]
[null,null,null,null,null,null,null,null,null,"Metis Nation of Alberta"]
[null,null,null,null,null,null,null,null,null,"Metis Nation of Alberta Fairview Local"]
[null,null,null,null,null,null,null,null,null,"Metis Nation of Alberta Region 1"]
[null,null,null,null,null,null,null,null,null,"Metis Nation of Alberta Region 2"]
[null,null,null,null,null,null,null,null,null,"Metis Nation of Alberta Region 3"]
[null,null,null,null,null,null,null,null,null,"Metis Nation of Alberta Region 4"]
[null,null,null,null,null,null,null,null,null,"Metis Nation of Alberta Region 5"]
[null,null,null,null,null,null,null,null,null,"Metis Nation of Alberta Region 6"]
[null,null,null,null,null,null,null,null,null,"Metis Nation of British Columbia"]
[null,null,null,null,null,null,null,null,null,"Metis Nation of British Columbia Kootenay Region"]
[null,null,null,null,null,null,null,null,null,"Metis Nation of British Columbia Lower Mainland Region"]
[null,null,null,null,null,null,null,null,null,"Metis Nation of British Columbia North Central Region"]
[null,null,null,null,null,null,null,null,null,"Metis Nation of British Columbia Northeast Region"]
[null,null,null,null,null,null,null,null,null,"Metis Nation of British Columbia Northwest Region"]
[null,null,null,null,null,null,null,null,null,"Metis Nation of British Columbia Thompson/Okanagan Region"]
[null,null,null,null,null,null,null,null,null,"Metis Nation of British Columbia Vancouver Island Region"]
[null,null,null,null,null,null,null,null,null,"Metis Nation of Canada"]
[null,null,null,null,null,null,null,null,null,"Metis Nation of Ontario"]
[null,null,null,null,null,null,null,null,null,"Metis Nation of Ontario Region 1"]
[null,null,null,null,null,null,null,null,null,"Metis Nation of Ontario Region 2"]
[null,null,null,null,null,null,null,null,null,"Metis Nation of Ontario Region 3"]
[null,null,null,null,null,null,null,null,null,"Metis Nation of Ontario Region 4"]
[null,null,null,null,null,null,null,null,null,"Metis Nation of Ontario Region 5"]
[null,null,null,null,null,null,null,null,null,"Metis Nation of Ontario Region 6"]
[null,null,null,null,null,null,null,null,null,"Metis Nation of Ontario Region 7"]
[null,null,null,null,null,null,null,null,null,"Metis Nation of Ontario Region 8"]
[null,null,null,null,null,null,null,null,null,"Metis Nation of Ontario Region 9"]
[null,null,null,null,null,null,null,null,null,"Metis Nation of Saskatchewan"]
[null,null,null,null,null,null,null,null,null,"Metis Nation of Saskatchewan Eastern Region 1"]
[null,null,null,null,null,null,null,null,null,"Metis Nation of Saskatchewan Eastern Region 2"]
[null,null,null,null,null,null,null,null,null,"Metis Nation of Saskatchewan Eastern Region 2a"]
[null,null,null,null,null,null,null,null,null,"Metis Nation of Saskatchewan Eastern Region 3"]
[null,null,null,null,null,null,null,null,null,"Metis Nation of Saskatchewan Northern Region 1"]
[null,null,null,null,null,null,null,null,null,"Metis Nation of Saskatchewan Northern Region 2"]
[null,null,null,null,null,null,null,null,null,"Metis Nation of Saskatchewan Northern Region 3"]
[null,null,null,null,null,null,null,null,null,"Metis Nation of Saskatchewan Western Region 1"]
[null,null,null,null,null,null,null,null,null,"Metis Nation of Saskatchewan Western Region 1a"]
[null,null,null,null,null,null,null,null,null,"Metis Nation of Saskatchewan Western Region 2"]
[null,null,null,null,null,null,null,null,null,"Metis Nation of Saskatchewan Western Region 2a"]
[null,null,null,null,null,null,null,null,null,"Metis Nation of Saskatchewan Western Region 3"]
[null,null,null,null,null,null,null,null,null,"Metis Settlements General Council"]
[null,null,null,null,null,null,null,null,null,"Metlakatla First Nation"]
[null,null,null,null,null,null,null,null,null,"Metlakatla Indian Community, Annette Island Reserve"]
[null,null,null,null,null,null,null,null,null,"Miami Tribe of Oklahoma"]
[null,null,null,null,null,null,null,null,null,"Miawpukek First Nation"]
[null,null,null,null,null,null,null,null,null,"Miccosukee Tribe of Indians"]
[null,null,null,null,null,null,null,null,null,"Michel First Nation"]
[null,null,null,null,null,null,null,null,null,"Michipicoten First Nation"]
[null,null,null,null,null,null,null,null,null,"Micmacs of Gesgapegiag Band"]
[null,null,null,null,null,null,null,null,null,"Micmacs of Gesgapegiag First Nation"]
[null,null,null,null,null,null,null,null,null,"Middletown Rancheria of Pomo Indians of California"]
[null,null,null,null,null,null,null,null,null,"Migisi Sahgaigan (Eagle Lake First Nation)"]
[null,null,null,null,null,null,null,null,null,"Mi'gmawei Mawiomi Secretariat"]
[null,null,null,null,null,null,null,null,null,"Mikisew Cree First Nation"]
[null,null,null,null,null,null,null,null,null,"Millbrook First Nation"]
[null,null,null,null,null,null,null,null,null,"Mille Lacs Band of Ojibwe"]
[null,null,null,null,null,null,null,null,null,"Miluulak"]
[null,null,null,null,null,null,null,null,null,"Ministikwan Lake Cree Nation"]
[null,null,null,null,null,null,null,null,null,"Minnesota Chippewa Tribe"]
[null,null,null,null,null,null,null,null,null,"Minnesota Chippewa Tribe - Bois Forte Band (Nett Lake)"]
[null,null,null,null,null,null,null,null,null,"Minnesota Chippewa Tribe - Fond du Lac Band"]
[null,null,null,null,null,null,null,null,null,"Minnesota Chippewa Tribe - Grand Portage Band"]
[null,null,null,null,null,null,null,null,null,"Minnesota Chippewa Tribe - Leech Lake Band"]
[null,null,null,null,null,null,null,null,null,"Minnesota Chippewa Tribe - White Earth Band"]
[null,null,null,null,null,null,null,null,null,"Mishkeegogamang First Nation"]
[null,null,null,null,null,null,null,null,null,"Misipawistik Cree Nation"]
[null,null,null,null,null,null,null,null,null,"Missanabie Cree First Nation"]
[null,null,null,null,null,null,null,null,null,"Mississauga First Nation"]
[null,null,null,null,null,null,null,null,null,"Mississaugas of Scugog Island First Nation"]
[null,null,null,null,null,null,null,null,null,"Mississaugas of the New Credit First Nation"]
[null,null,null,null,null,null,null,null,null,"Mississippi Band of Choctaw Indians"]
[null,null,null,null,null,null,null,null,null,"Mistawasis Nêhiyawak"]
[null,null,null,null,null,null,null,null,null,"Mitaanjigamiing First Nation"]
[null,null,null,null,null,null,null,null,null,"MMF Region 1 & 2"]
[null,null,null,null,null,null,null,null,null,"Moapa Band of Paiute Indians of the Moapa River Indian Reservation, Nevada"]
[null,null,null,null,null,null,null,null,null,"Moccassin Flats Metis Society (Chetwynd)"]
[null,null,null,null,null,null,null,null,null,"Mohawk Council of Akwesasne"]
[null,null,null,null,null,null,null,null,null,"Mohawk Council of Kahnawà:ke"]
[null,null,null,null,null,null,null,null,null,"Mohawk Council of Kanesatake"]
[null,null,null,null,null,null,null,null,null,"Mohawks of Akwesasne First Nation"]
[null,null,null,null,null,null,null,null,null,"Mohawks of Kahnawá:ke"]
[null,null,null,null,null,null,null,null,null,"Mohawks of Kanesatake"]
[null,null,null,null,null,null,null,null,null,"Mohawks of the Bay of Quinte"]
[null,null,null,null,null,null,null,null,null,"Mohegan Tribe of Indians of Connecticut"]
[null,null,null,null,null,null,null,null,null,"Montagnais de Natashquan"]
[null,null,null,null,null,null,null,null,null,"Montagnais de Pakua Shipi"]
[null,null,null,null,null,null,null,null,null,"Montagnais de Unamen Shipu First Nation"]
[null,null,null,null,null,null,null,null,null,"Montagnais du Lac St-Jean"]
[null,null,null,null,null,null,null,null,null,"Montana First Nation"]
[null,null,null,null,null,null,null,null,null,"Montreal Lake Cree Nation"]
[null,null,null,null,null,null,null,null,null,"Mooretown Rancheria of Maidu Indians of California"]
[null,null,null,null,null,null,null,null,null,"Moose Cree First Nation"]
[null,null,null,null,null,null,null,null,null,"Moose Deer Point First Nation"]
[null,null,null,null,null,null,null,null,null,"Moosomin First Nation"]
[null,null,null,null,null,null,null,null,null,"Moravian of the Thames First Nation"]
[null,null,null,null,null,null,null,null,null,"Moricetown Indian Band"]
[null,null,null,null,null,null,null,null,null,"Morongo Band of Mission Indians, California"]
[null,null,null,null,null,null,null,null,null,"Mosakahiken Cree Nation"]
[null,null,null,null,null,null,null,null,null,"Mosquito, Grizzly Bear's Head, Lean Man First Nations"]
[null,null,null,null,null,null,null,null,null,"Mowachaht/Muchalaht First Nations"]
[null,null,null,null,null,null,null,null,null,"Muckleshoot Indian Tribe"]
[null,null,null,null,null,null,null,null,null,"Munsee-Delaware Nation"]
[null,null,null,null,null,null,null,null,null,"Muscowpetung First Nation"]
[null,null,null,null,null,null,null,null,null,"Mushkegowuk Council"]
[null,null,null,null,null,null,null,null,null,"Mushuau Innu First Nation"]
[null,null,null,null,null,null,null,null,null,"Muskeg Lake Cree Nation #102"]
[null,null,null,null,null,null,null,null,null,"Muskoday First Nation"]
[null,null,null,null,null,null,null,null,null,"Muskowekwan First Nation"]
[null,null,null,null,null,null,null,null,null,"Muskrat Dam Lake First Nation"]
[null,null,null,null,null,null,null,null,null,"Musqueam Indian Band"]
[null,null,null,null,null,null,null,null,null,"Nadleh Whuten First Nation"]
[null,null,null,null,null,null,null,null,null,"Nahanni Butte"]
[null,null,null,null,null,null,null,null,null,"Naicatchewenin First Nation"]
[null,null,null,null,null,null,null,null,null,"Nak’azdli Whuten Band"]
[null,null,null,null,null,null,null,null,null,"Nak'azdli Whut'en First Nation"]
[null,null,null,null,null,null,null,null,null,"Nakcowinewak Nation of Canada"]
[null,null,null,null,null,null,null,null,null,"Naknek Native Village"]
[null,null,null,null,null,null,null,null,null,"Namgis First Nation"]
[null,null,null,null,null,null,null,null,null,"Nanoose First Nation"]
[null,null,null,null,null,null,null,null,null,"Naotkamegwanning First Nation"]
[null,null,null,null,null,null,null,null,null,"Narragansett Indian Tribe"]
[null,null,null,null,null,null,null,null,null,"Naskapi Nation of Kawawachikamach"]
[null,null,null,null,null,null,null,null,null,"Nation Anishnabe du Lac Simon"]
[null,null,null,null,null,null,null,null,null,"Nation Huronne-Wendat"]
[null,null,null,null,null,null,null,null,null,"Native Village of Afognak"]
[null,null,null,null,null,null,null,null,null,"Native Village of Akhiok"]
[null,null,null,null,null,null,null,null,null,"Native Village of Akutan"]
[null,null,null,null,null,null,null,null,null,"Native Village of Aleknagik"]
[null,null,null,null,null,null,null,null,null,"Native Village of Ambler"]
[null,null,null,null,null,null,null,null,null,"Native Village of Atka"]
[null,null,null,null,null,null,null,null,null,"Native Village of Barrow Inupiat Traditional Government"]
[null,null,null,null,null,null,null,null,null,"Native Village of Belkofski"]
[null,null,null,null,null,null,null,null,null,"Native Village of Brevig Mission"]
[null,null,null,null,null,null,null,null,null,"Native Village of Buckland"]
[null,null,null,null,null,null,null,null,null,"Native Village of Cantwell"]
[null,null,null,null,null,null,null,null,null,"Native Village of Chenega (aka Chanega)"]
[null,null,null,null,null,null,null,null,null,"Native Village of Chignik Lagoon"]
[null,null,null,null,null,null,null,null,null,"Native Village of Chitina"]
[null,null,null,null,null,null,null,null,null,"Native Village of Chuathbaluk (Russian Mission, Kuskokwim)"]
[null,null,null,null,null,null,null,null,null,"Native Village of Council"]
[null,null,null,null,null,null,null,null,null,"Native Village of Deering"]
[null,null,null,null,null,null,null,null,null,"Native Village of Diomede (aka Inalik)"]
[null,null,null,null,null,null,null,null,null,"Native Village of Eagle"]
[null,null,null,null,null,null,null,null,null,"Native Village of Eek"]
[null,null,null,null,null,null,null,null,null,"Native Village of Ekuk"]
[null,null,null,null,null,null,null,null,null,"Native Village of Ekwok"]
[null,null,null,null,null,null,null,null,null,"Native Village of Elim"]
[null,null,null,null,null,null,null,null,null,"Native Village of Eyak (Cordova)"]
[null,null,null,null,null,null,null,null,null,"Native Village of False Pass"]
[null,null,null,null,null,null,null,null,null,"Native Village of Fort Yukon"]
[null,null,null,null,null,null,null,null,null,"Native Village of Gakona"]
[null,null,null,null,null,null,null,null,null,"Native Village of Gambell"]
[null,null,null,null,null,null,null,null,null,"Native Village of Georgetown"]
[null,null,null,null,null,null,null,null,null,"Native Village of Goodnews Bay"]
[null,null,null,null,null,null,null,null,null,"Native Village of Hamilton"]
[null,null,null,null,null,null,null,null,null,"Native Village of Hooper Bay"]
[null,null,null,null,null,null,null,null,null,"Native Village of Kanatak"]
[null,null,null,null,null,null,null,null,null,"Native Village of Karluk"]
[null,null,null,null,null,null,null,null,null,"Native Village of Kiana"]
[null,null,null,null,null,null,null,null,null,"Native Village of Kipnuk"]
[null,null,null,null,null,null,null,null,null,"Native Village of Kivalina"]
[null,null,null,null,null,null,null,null,null,"Native Village of Kluti-Kaah (aka Copper Center)"]
[null,null,null,null,null,null,null,null,null,"Native Village of Kobuk"]
[null,null,null,null,null,null,null,null,null,"Native Village of Kongiganak"]
[null,null,null,null,null,null,null,null,null,"Native Village of Kotzebue"]
[null,null,null,null,null,null,null,null,null,"Native Village of Koyuk"]
[null,null,null,null,null,null,null,null,null,"Native Village of Kwigillingok"]
[null,null,null,null,null,null,null,null,null,"Native Village of Kwinhagak (aka Quinhagak)"]
[null,null,null,null,null,null,null,null,null,"Native Village of Larsen Bay"]
[null,null,null,null,null,null,null,null,null,"Native Village of Marshall (aka Fortuna Ledge)"]
[null,null,null,null,null,null,null,null,null,"Native Village of Mary's Igloo"]
[null,null,null,null,null,null,null,null,null,"Native Village of Mekoryuk"]
[null,null,null,null,null,null,null,null,null,"Native Village of Minto"]
[null,null,null,null,null,null,null,null,null,"Native Village of Nanwalek (aka English Bay)"]
[null,null,null,null,null,null,null,null,null,"Native Village of Napaimute"]
[null,null,null,null,null,null,null,null,null,"Native Village of Napakiak"]
[null,null,null,null,null,null,null,null,null,"Native Village of Napaskiak"]
[null,null,null,null,null,null,null,null,null,"Native Village of Nelson Lagoon"]
[null,null,null,null,null,null,null,null,null,"Native Village of Nightmute"]
[null,null,null,null,null,null,null,null,null,"Native Village of Nikolski"]
[null,null,null,null,null,null,null,null,null,"Native Village of Noatak"]
[null,null,null,null,null,null,null,null,null,"Native Village of Nuiqsut (aka Nooiksut)"]
[null,null,null,null,null,null,null,null,null,"Native Village of Nunam Iqua"]
[null,null,null,null,null,null,null,null,null,"Native Village of Nunapitchuk"]
[null,null,null,null,null,null,null,null,null,"Native Village of Ouzinkie"]
[null,null,null,null,null,null,null,null,null,"Native Village of Paimiut"]
[null,null,null,null,null,null,null,null,null,"Native Village of Perryville"]
[null,null,null,null,null,null,null,null,null,"Native Village of Pilot Point"]
[null,null,null,null,null,null,null,null,null,"Native Village of Pitka's Point"]
[null,null,null,null,null,null,null,null,null,"Native Village of Point Hope"]
[null,null,null,null,null,null,null,null,null,"Native Village of Point Lay"]
[null,null,null,null,null,null,null,null,null,"Native Village of Port Graham"]
[null,null,null,null,null,null,null,null,null,"Native Village of Port Heiden"]
[null,null,null,null,null,null,null,null,null,"Native Village of Port Lions"]
[null,null,null,null,null,null,null,null,null,"Native Village of Ruby"]
[null,null,null,null,null,null,null,null,null,"Native Village of Saint Michael"]
[null,null,null,null,null,null,null,null,null,"Native Village of Savoonga"]
[null,null,null,null,null,null,null,null,null,"Native Village of Scammon Bay"]
[null,null,null,null,null,null,null,null,null,"Native Village of Selawik"]
[null,null,null,null,null,null,null,null,null,"Native Village of Shaktoolik"]
[null,null,null,null,null,null,null,null,null,"Native Village of Shishmaref"]
[null,null,null,null,null,null,null,null,null,"Native Village of Shungnak"]
[null,null,null,null,null,null,null,null,null,"Native Village of Stevens"]
[null,null,null,null,null,null,null,null,null,"Native Village of Tanacross"]
[null,null,null,null,null,null,null,null,null,"Native Village of Tanana"]
[null,null,null,null,null,null,null,null,null,"Native Village of Tatitlek"]
[null,null,null,null,null,null,null,null,null,"Native Village of Tazlina"]
[null,null,null,null,null,null,null,null,null,"Native Village of Teller"]
[null,null,null,null,null,null,null,null,null,"Native Village of Tetlin"]
[null,null,null,null,null,null,null,null,null,"Native Village of Tuntutuliak"]
[null,null,null,null,null,null,null,null,null,"Native Village of Tununak"]
[null,null,null,null,null,null,null,null,null,"Native Village of Tyonek"]
[null,null,null,null,null,null,null,null,null,"Native Village of Unalakleet"]
[null,null,null,null,null,null,null,null,null,"Native Village of Unga"]
[null,null,null,null,null,null,null,null,null,"Native Village of Venetie Tribal Government"]
[null,null,null,null,null,null,null,null,null,"Native Village of Wales"]
[null,null,null,null,null,null,null,null,null,"Native Village of White Mountain"]
[null,null,null,null,null,null,null,null,null,"Navajo Nation, Arizona, New Mexico & Utah"]
[null,null,null,null,null,null,null,null,null,"Nazko First Nation"]
[null,null,null,null,null,null,null,null,null,"Nee-Tahi-Buhn Band"]
[null,null,null,null,null,null,null,null,null,"Nekaneet First Nation"]
[null,null,null,null,null,null,null,null,null,"Nenana Native Association"]
[null,null,null,null,null,null,null,null,null,"Neskantaga First Nation"]
[null,null,null,null,null,null,null,null,null,"Neskonlith Indian Band"]
[null,null,null,null,null,null,null,null,null,"New Koliganek Village Council"]
[null,null,null,null,null,null,null,null,null,"New Stuyahok Village"]
[null,null,null,null,null,null,null,null,null,"New Westminster Indian Band"]
[null,null,null,null,null,null,null,null,null,"Newhalen Village"]
[null,null,null,null,null,null,null,null,null,"Newtok Village"]
[null,null,null,null,null,null,null,null,null,"Nez Perce Tribe"]
[null,null,null,null,null,null,null,null,null,"Nibinamik First Nation"]
[null,null,null,null,null,null,null,null,null,"Nicomen Indian Band"]
[null,null,null,null,null,null,null,null,null,"Nigigoonsiminikaaning First Nation"]
[null,null,null,null,null,null,null,null,null,"Niharondasa Seneca Six Nations of the Grand River"]
[null,null,null,null,null,null,null,null,null,"Niisaachewan Anishinaabe Nation"]
[null,null,null,null,null,null,null,null,null,"Nikolai Village"]
[null,null,null,null,null,null,null,null,null,"Ninilchik Village"]
[null,null,null,null,null,null,null,null,null,"Nipissing First Nation"]
[null,null,null,null,null,null,null,null,null,"Nisga'a Lisms Government"]
[null,null,null,null,null,null,null,null,null,"Nisga'a Village of Gingolx"]
[null,null,null,null,null,null,null,null,null,"Nisga'a Village of Gitwinksihlkw"]
[null,null,null,null,null,null,null,null,null,"Nisga'a Village of Laxgalt'sap"]
[null,null,null,null,null,null,null,null,null,"Nisga'a Village of New Aiyansh"]
[null,null,null,null,null,null,null,null,null,"Nishnawbe Aski Nation"]
[null,null,null,null,null,null,null,null,null,"Nisichawayasihk Cree Nation"]
[null,null,null,null,null,null,null,null,null,"Nisqually Indian Tribe"]
[null,null,null,null,null,null,null,null,null,"Nokiwiin Tribal Council"]
[null,null,null,null,null,null,null,null,null,"Nome Eskimo Community"]
[null,null,null,null,null,null,null,null,null,"Nondalton Village"]
[null,null,null,null,null,null,null,null,null,"Nooaitch Indian Band"]
[null,null,null,null,null,null,null,null,null,"Nooksack Indian Tribe"]
[null,null,null,null,null,null,null,null,null,"Noorvik Native Community"]
[null,null,null,null,null,null,null,null,null,"North Caribou Lake"]
[null,null,null,null,null,null,null,null,null,"North Caribou Lake First Nation"]
[null,null,null,null,null,null,null,null,null,"North East Metis Association of BC"]
[null,null,null,null,null,null,null,null,null,"North Peace Tribal Council"]
[null,null,null,null,null,null,null,null,null,"North Spirit Lake First Nation"]
[null,null,null,null,null,null,null,null,null,"Northeast Metis Association (Dawson Creek)"]
[null,null,null,null,null,null,null,null,null,"Northeast Regional Superior Chiefs Forum"]
[null,null,null,null,null,null,null,null,null,"Northern Alberta Aboriginal Business Association"]
[null,null,null,null,null,null,null,null,null,"Northern Arapaho Tribe of the Wind River Reservation, Wyoming"]
[null,null,null,null,null,null,null,null,null,"Northern Cheyenne Tribe"]
[null,null,null,null,null,null,null,null,null,"Northern Interior Metis Cultural Society"]
[null,null,null,null,null,null,null,null,null,"Northfork Rancheria of Mono Indians of California"]
[null,null,null,null,null,null,null,null,null,"Northlands Denesuline First Nation"]
[null,null,null,null,null,null,null,null,null,"Northway Village"]
[null,null,null,null,null,null,null,null,null,"Northwest Angle 33 First Nation"]
[null,null,null,null,null,null,null,null,null,"Northwest Angle 37 First Nation"]
[null,null,null,null,null,null,null,null,null,"Northwestern Band of Shoshone Nation"]
[null,null,null,null,null,null,null,null,null,"Norway House Cree Nation"]
[null,null,null,null,null,null,null,null,null,"Nose Creek Community"]
[null,null,null,null,null,null,null,null,null,"Not Stated"]
[null,null,null,null,null,null,null,null,null,"Nottawaseppi Huron Band of the Potawatomi, MI"]
[null,null,null,null,null,null,null,null,null,"N'Quatqua First Nation"]
[null,null,null,null,null,null,null,null,null,"Nuchatlaht First Nation"]
[null,null,null,null,null,null,null,null,null,"Nulato Village"]
[null,null,null,null,null,null,null,null,null,"Nunakauyarmiut Tribe"]
[null,null,null,null,null,null,null,null,null,"Nuxalk Nation"]
[null,null,null,null,null,null,null,null,null,"Obashkaandagaang First Nation"]
[null,null,null,null,null,null,null,null,null,"Ocean Man First Nation"]
[null,null,null,null,null,null,null,null,null,"Ochapowace First Nation"]
[null,null,null,null,null,null,null,null,null,"O-Chi-Chak-Ko-Sipi First Nation"]
[null,null,null,null,null,null,null,null,null,"O'Chiese First Nation"]
[null,null,null,null,null,null,null,null,null,"Ochiichagwe'Bagigo'ining First Nation"]
[null,null,null,null,null,null,null,null,null,"Odanak First Nation"]
[null,null,null,null,null,null,null,null,null,"Oglala Sioux Tribe"]
[null,null,null,null,null,null,null,null,null,"Ohkay Owingeh"]
[null,null,null,null,null,null,null,null,null,"Ojibway Nation of Saugeen"]
[null,null,null,null,null,null,null,null,null,"Ojibways Of Onigaming First Nation"]
[null,null,null,null,null,null,null,null,null,"Ojibways of the Pic River First Nation"]
[null,null,null,null,null,null,null,null,null,"Okanagan First Nation"]
[null,null,null,null,null,null,null,null,null,"Okanese First Nation"]
[null,null,null,null,null,null,null,null,null,"Old Massett Village Council"]
[null,null,null,null,null,null,null,null,null,"Omaha Tribe of Nebraska"]
[null,null,null,null,null,null,null,null,null,"One Arrow First Nation"]
[null,null,null,null,null,null,null,null,null,"Oneida"]
[null,null,null,null,null,null,null,null,null,"Oneida Nation"]
[null,null,null,null,null,null,null,null,null,"Oneida Nation of New York"]
[null,null,null,null,null,null,null,null,null,"Oneida Nation of the Thames"]
[null,null,null,null,null,null,null,null,null,"Onigaming"]
[null,null,null,null,null,null,null,null,null,"Onigaming First Nation"]
[null,null,null,null,null,null,null,null,null,"Onion Lake Cree Nation"]
[null,null,null,null,null,null,null,null,null,"Onondaga Clear Sky"]
[null,null,null,null,null,null,null,null,null,"Onondaga Nation"]
[null,null,null,null,null,null,null,null,null,"Opaskwayak Cree Nation"]
[null,null,null,null,null,null,null,null,null,"O-Pipon-Na-Piwin Cree Nation"]
[null,null,null,null,null,null,null,null,null,"Oregon Jack Creek Band"]
[null,null,null,null,null,null,null,null,null,"Organized Village of Grayling (aka Holikachuk)"]
[null,null,null,null,null,null,null,null,null,"Organized Village of Kake"]
[null,null,null,null,null,null,null,null,null,"Organized Village of Kasaan"]
[null,null,null,null,null,null,null,null,null,"Organized Village of Kwethluk"]
[null,null,null,null,null,null,null,null,null,"Organized Village of Saxman"]
[null,null,null,null,null,null,null,null,null,"Oromocto First Nation"]
[null,null,null,null,null,null,null,null,null,"Orutsararmiut Traditional Native Council"]
[null,null,null,null,null,null,null,null,null,"Osage Nation"]
[null,null,null,null,null,null,null,null,null,"Oscarville Traditional Village"]
[null,null,null,null,null,null,null,null,null,"Osoyoos Indian Band"]
[null,null,null,null,null,null,null,null,null,"Otoe-Missouria Tribe of Indians, Oklahoma"]
[null,null,null,null,null,null,null,null,null,"Ottawa Algonquin First Nation"]
[null,null,null,null,null,null,null,null,null,"Ottawa Tribe of Oklahoma"]
[null,null,null,null,null,null,null,null,null,"Oujé-Bougoumou Cree Nation"]
[null,null,null,null,null,null,null,null,null,"Owl River Metis Local #1949"]
[null,null,null,null,null,null,null,null,null,"Pabineau First Nation"]
[null,null,null,null,null,null,null,null,null,"Pacheedaht First Nation"]
[null,null,null,null,null,null,null,null,null,"Paddle Prairie Metis Settlement"]
[null,null,null,null,null,null,null,null,null,"Paiute Indian Tribe of Utah (Cedar Band of Paiutes, Kanosh Band of Paiutes, Koosharem Band of Paiutes, Indian Peaks Band of Paiutes, and Shivwits Band of Paiutes)"]
[null,null,null,null,null,null,null,null,null,"Paiute-Shoshone Tribe of the Fallon Reservation and Colony, Nevada"]
[null,null,null,null,null,null,null,null,null,"Pala Band of Mission Indians"]
[null,null,null,null,null,null,null,null,null,"Pamunkey Indian Tribe"]
[null,null,null,null,null,null,null,null,null,"Paqtnkek Mi'kmaw Nation"]
[null,null,null,null,null,null,null,null,null,"Pascua Yaqui Tribe of Arizona"]
[null,null,null,null,null,null,null,null,null,"Paskenta Band of Nomlaki Indians of California"]
[null,null,null,null,null,null,null,null,null,"Pasqua First Nation #79"]
[null,null,null,null,null,null,null,null,null,"Passamaquoddy Tribe - Indian Township"]
[null,null,null,null,null,null,null,null,null,"Passamaquoddy Tribe - Pleasant Point"]
[null,null,null,null,null,null,null,null,null,"Passpasschase First Nation"]
[null,null,null,null,null,null,null,null,null,"Pauingassi First Nation"]
[null,null,null,null,null,null,null,null,null,"Paul First Nation"]
[null,null,null,null,null,null,null,null,null,"Pauloff Harbor Village"]
[null,null,null,null,null,null,null,null,null,"Pauma Band of Luiseno Mission Indians of the Pauma & Yuima Reservation, California"]
[null,null,null,null,null,null,null,null,null,"Pauquachin First Nation"]
[null,null,null,null,null,null,null,null,null,"Pawnee Nation of Oklahoma"]
[null,null,null,null,null,null,null,null,null,"Pays Plat First Nation"]
[null,null,null,null,null,null,null,null,null,"Peavine Metis Settlement"]
[null,null,null,null,null,null,null,null,null,"Pechanga Band of Luiseno Mission Indians of the Pechanga Reservation, California"]
[null,null,null,null,null,null,null,null,null,"Pedro Bay Village"]
[null,null,null,null,null,null,null,null,null,"Peepeekisis Cree Nation"]
[null,null,null,null,null,null,null,null,null,"Peerless Trout First Nation"]
[null,null,null,null,null,null,null,null,null,"Peguis First Nation"]
[null,null,null,null,null,null,null,null,null,"Pehdzeh Ki First Nation"]
[null,null,null,null,null,null,null,null,null,"Pelican Lake First Nation"]
[null,null,null,null,null,null,null,null,null,"Penelakut Tribe"]
[null,null,null,null,null,null,null,null,null,"Penobscot Nation"]
[null,null,null,null,null,null,null,null,null,"Penticton Indian Band"]
[null,null,null,null,null,null,null,null,null,"Peoria Tribe of Indians of Oklahoma"]
[null,null,null,null,null,null,null,null,null,"Peter Ballantyne Cree Nation"]
[null,null,null,null,null,null,null,null,null,"Peters First Nation"]
[null,null,null,null,null,null,null,null,null,"Petersburg Indian Association"]
[null,null,null,null,null,null,null,null,null,"Pheasant Rump Nakota First Nation"]
[null,null,null,null,null,null,null,null,null,"Piapot First Nation"]
[null,null,null,null,null,null,null,null,null,"Pic Mobert First Nation"]
[null,null,null,null,null,null,null,null,null,"Picayune Rancheria of Chukchansi Indians of California"]
[null,null,null,null,null,null,null,null,null,"Pictou Landing First Nation"]
[null,null,null,null,null,null,null,null,null,"Piikani Nation"]
[null,null,null,null,null,null,null,null,null,"Pikangikum First Nation"]
[null,null,null,null,null,null,null,null,null,"Pilot Station Traditional Village"]
[null,null,null,null,null,null,null,null,null,"Pinaymootang First Nation"]
[null,null,null,null,null,null,null,null,null,"Pine Creek First Nation"]
[null,null,null,null,null,null,null,null,null,"Pinoleville Pomo Nation, California"]
[null,null,null,null,null,null,null,null,null,"Pit River Tribe, California"]
[null,null,null,null,null,null,null,null,null,"Platinum Traditional Village"]
[null,null,null,null,null,null,null,null,null,"Poarch Band of Creeks"]
[null,null,null,null,null,null,null,null,null,"Pokagon Band of Potawatomi Indians, Michigan & Indiana"]
[null,null,null,null,null,null,null,null,null,"Ponca Tribe of Indians of Oklahoma"]
[null,null,null,null,null,null,null,null,null,"Ponca Tribe of Nebraska"]
[null,null,null,null,null,null,null,null,null,"Popkum First Nation"]
[null,null,null,null,null,null,null,null,null,"Poplar Hill First Nation"]
[null,null,null,null,null,null,null,null,null,"Poplar Point First Nation"]
[null,null,null,null,null,null,null,null,null,"Poplar River First Nation"]
[null,null,null,null,null,null,null,null,null,"Port Gamble S'Klallam Tribe"]
[null,null,null,null,null,null,null,null,null,"Portage Creek Village (aka Ohgsenakale)"]
[null,null,null,null,null,null,null,null,null,"Potlotek First Nation"]
[null,null,null,null,null,null,null,null,null,"Potter Valley Tribe, California"]
[null,null,null,null,null,null,null,null,null,"Poundmaker Cree Nation"]
[null,null,null,null,null,null,null,null,null,"Prairie Band of Potawatomi Nation"]
[null,null,null,null,null,null,null,null,null,"Prairie Island Indian Community in the State of MN"]
[null,null,null,null,null,null,null,null,null,"Première nation de Whapmagoostui"]
[null,null,null,null,null,null,null,null,null,"Première Nation des Abénakis de Wôlinak"]
[null,null,null,null,null,null,null,null,null,"Première Nation Malecite de Viger"]
[null,null,null,null,null,null,null,null,null,"Première Nation Wolastoqiyik Wahsipekuk"]
[null,null,null,null,null,null,null,null,null,"Prince George Metis Community Association"]
[null,null,null,null,null,null,null,null,null,"Prophet River First Nation"]
[null,null,null,null,null,null,null,null,null,"Pueblo of Acoma"]
[null,null,null,null,null,null,null,null,null,"Pueblo of Cochiti"]
[null,null,null,null,null,null,null,null,null,"Pueblo of Isleta"]
[null,null,null,null,null,null,null,null,null,"Pueblo of Jemez"]
[null,null,null,null,null,null,null,null,null,"Pueblo of Laguna"]
[null,null,null,null,null,null,null,null,null,"Pueblo of Nambe"]
[null,null,null,null,null,null,null,null,null,"Pueblo of Picuris"]
[null,null,null,null,null,null,null,null,null,"Pueblo of Pojoaque"]
[null,null,null,null,null,null,null,null,null,"Pueblo of San Felipe"]
[null,null,null,null,null,null,null,null,null,"Pueblo of San Ildefonso"]
[null,null,null,null,null,null,null,null,null,"Pueblo of Sandia"]
[null,null,null,null,null,null,null,null,null,"Pueblo of Santa Ana"]
[null,null,null,null,null,null,null,null,null,"Pueblo of Santa Clara"]
[null,null,null,null,null,null,null,null,null,"Pueblo of Taos"]
[null,null,null,null,null,null,null,null,null,"Pueblo of Tesuque"]
[null,null,null,null,null,null,null,null,null,"Pueblo of Zia"]
[null,null,null,null,null,null,null,null,null,"Puyallup Tribe of the Puyallup Reservation"]
[null,null,null,null,null,null,null,null,null,"Pyramid Lake Paiute Tribe of the Pyramid Lake Reservation, Nevada"]
[null,null,null,null,null,null,null,null,null,"Qagan Tayagungin Tribe of Sand Point Village"]
[null,null,null,null,null,null,null,null,null,"Qalipu Mi'kmaq First Nation"]
[null,null,null,null,null,null,null,null,null,"Qawalangin Tribe of Unalaska"]
[null,null,null,null,null,null,null,null,null,"Qualicum First Nation"]
[null,null,null,null,null,null,null,null,null,"Quartz Valley Indian Community of the Quartz Valley Reservation of California"]
[null,null,null,null,null,null,null,null,null,"Quatsino First Nation"]
[null,null,null,null,null,null,null,null,null,"Quechan Tribe of the Fort Yuma Indian Reservation, California & Arizona (aka Fort Yuma-Quechen Tribe)"]
[null,null,null,null,null,null,null,null,null,"Quileute Tribe of the Quileute Reservation"]
[null,null,null,null,null,null,null,null,null,"Quinault Indian Nation"]
[null,null,null,null,null,null,null,null,null,"Rainy River First Nations"]
[null,null,null,null,null,null,null,null,null,"Ramah Navajo Chapter"]
[null,null,null,null,null,null,null,null,null,"Ramona Band of Cahuilla, California"]
[null,null,null,null,null,null,null,null,null,"Rampart Village"]
[null,null,null,null,null,null,null,null,null,"Red Cliff Band of Lake Superior Chippewa Indians of Wisconsin"]
[null,null,null,null,null,null,null,null,null,"Red Earth First Nation"]
[null,null,null,null,null,null,null,null,null,"Red Lake Band of Chippewa Indians, Minnesota"]
[null,null,null,null,null,null,null,null,null,"Red Phesant First Nation"]
[null,null,null,null,null,null,null,null,null,"Red River Metis Society"]
[null,null,null,null,null,null,null,null,null,"Red Rock Indian Band"]
[null,null,null,null,null,null,null,null,null,"Red Sky Metis Independant Nation"]
[null,null,null,null,null,null,null,null,null,"Red Sucker Lake First Nation"]
[null,null,null,null,null,null,null,null,null,"Redding Rancheria, California"]
[null,null,null,null,null,null,null,null,null,"Redwood Valley or Little River Band of Pomo Indians of the Redwood Valley Rancheria California"]
[null,null,null,null,null,null,null,null,null,"Reno-Sparks Indian Colony, Nevada"]
[null,null,null,null,null,null,null,null,null,"Resighini Rancheria, California"]
[null,null,null,null,null,null,null,null,null,"Riel Metis Local"]
[null,null,null,null,null,null,null,null,null,"Rincon Band of Luiseno Mission Indians of the Rincon Reservation, California"]
[null,null,null,null,null,null,null,null,null,"River & Ocean Metis Society"]
[null,null,null,null,null,null,null,null,null,"River of the Peace Metis Society"]
[null,null,null,null,null,null,null,null,null,"Robinson Rancheria Band of Pomo Indians, CA"]
[null,null,null,null,null,null,null,null,null,"Rocanville Metis Local #135"]
[null,null,null,null,null,null,null,null,null,"Rolling River First Nation"]
[null,null,null,null,null,null,null,null,null,"Roseau River Anishinabe First Nation"]
[null,null,null,null,null,null,null,null,null,"Rosebud Sioux Tribe of the Rosebud Indian Reservation, SD"]
[null,null,null,null,null,null,null,null,null,"Ross River"]
[null,null,null,null,null,null,null,null,null,"Ross River Dena Council"]
[null,null,null,null,null,null,null,null,null,"Round Valley Indian Tribes, Round Valley Reservation, California"]
[null,null,null,null,null,null,null,null,null,"Sac & Fox Tribe of the Mississippi in Iowa"]
[null,null,null,null,null,null,null,null,null,"Sac and Fox Nation of Missouri in Kansas and Nebraska"]
[null,null,null,null,null,null,null,null,null,"Sac and Fox Nation, Oklahoma"]
[null,null,null,null,null,null,null,null,null,"Sachigo Lake First Nation"]
[null,null,null,null,null,null,null,null,null,"Saddle Lake Cree Nation"]
[null,null,null,null,null,null,null,null,null,"Sagamok Anishnawbek First Nation"]
[null,null,null,null,null,null,null,null,null,"Saginaw Chippewa Indian Tribe of Michigan"]
[null,null,null,null,null,null,null,null,null,"Sagkeeng First Nation"]
[null,null,null,null,null,null,null,null,null,"Saik'uz First Nation"]
[null,null,null,null,null,null,null,null,null,"Saint George Island"]
[null,null,null,null,null,null,null,null,null,"Saint Mary's Indian Band"]
[null,null,null,null,null,null,null,null,null,"Saint Paul Island"]
[null,null,null,null,null,null,null,null,null,"Saint Regis Mohawk Tribe"]
[null,null,null,null,null,null,null,null,null,"Sakimay First Nation"]
[null,null,null,null,null,null,null,null,null,"Salt River First Nation"]
[null,null,null,null,null,null,null,null,null,"Salt River Pima-Maricopa Indian Community of the Salt River Reservation, Arizona"]
[null,null,null,null,null,null,null,null,null,"Samahquam First Nation"]
[null,null,null,null,null,null,null,null,null,"Sambaa K'e First Nation"]
[null,null,null,null,null,null,null,null,null,"Samish Indian Nation"]
[null,null,null,null,null,null,null,null,null,"Samson Cree Nation"]
[null,null,null,null,null,null,null,null,null,"San Carlos Apache Tribe of the San Carlos Reservation, Arizona"]
[null,null,null,null,null,null,null,null,null,"San Juan Southern Paiute Tribe of Arizona"]
[null,null,null,null,null,null,null,null,null,"San Manuel Band of Mission Indians, California"]
[null,null,null,null,null,null,null,null,null,"San Pasqual Band of Diegueno Mission Indians of California"]
[null,null,null,null,null,null,null,null,null,"Sandy Bay Ojibway First Nation"]
[null,null,null,null,null,null,null,null,null,"Sandy Lake First Nation"]
[null,null,null,null,null,null,null,null,null,"Santa Rosa Band of Cahuilla Indians, California"]
[null,null,null,null,null,null,null,null,null,"Santa Rosa Indian Community of the Santa Rosa Rancheria, California"]
[null,null,null,null,null,null,null,null,null,"Santa Ynez Band of Chumash Mission Indians of the Santa Ynez Reservation, California"]
[null,null,null,null,null,null,null,null,null,"Santee Sioux Nation, Nebraska"]
[null,null,null,null,null,null,null,null,null,"Sapotaweyak Cree Nation"]
[null,null,null,null,null,null,null,null,null,"Saskatoon Tribal Council"]
[null,null,null,null,null,null,null,null,null,"Saugeen First Nation"]
[null,null,null,null,null,null,null,null,null,"Saugeen Ojibway Nation"]
[null,null,null,null,null,null,null,null,null,"Sauk-Suiattle Indian Tribe"]
[null,null,null,null,null,null,null,null,null,"Sault Ste. Marie Tribe of Chippewa Indians, Michigan"]
[null,null,null,null,null,null,null,null,null,"Saulteau First Nation"]
[null,null,null,null,null,null,null,null,null,"Saulteaux First Nation"]
[null,null,null,null,null,null,null,null,null,"Sawridge First Nation"]
[null,null,null,null,null,null,null,null,null,"Sayisi Dene First Nation"]
[null,null,null,null,null,null,null,null,null,"Scotts Valley Band of Pomo Indians of California"]
[null,null,null,null,null,null,null,null,null,"Seabird Island"]
[null,null,null,null,null,null,null,null,null,"Seabird Island First Nation"]
[null,null,null,null,null,null,null,null,null,"Sechelt"]
[null,null,null,null,null,null,null,null,null,"Seine River First Nation"]
[null,null,null,null,null,null,null,null,null,"Seldovia Village Tribe"]
[null,null,null,null,null,null,null,null,null,"Selkirk First Nation"]
[null,null,null,null,null,null,null,null,null,"Semiahmoo First Nation"]
[null,null,null,null,null,null,null,null,null,"Seminole Tribe of Florida"]
[null,null,null,null,null,null,null,null,null,"Seneca Nation of Indians"]
[null,null,null,null,null,null,null,null,null,"Seneca-Cayuga Nation"]
[null,null,null,null,null,null,null,null,null,"Serpent River First Nation"]
[null,null,null,null,null,null,null,null,null,"Seton Lake Indian Band"]
[null,null,null,null,null,null,null,null,null,"Shabot Obaadjiwan First Nation"]
[null,null,null,null,null,null,null,null,null,"Shackan Indian Band"]
[null,null,null,null,null,null,null,null,null,"Shageluk Native Village"]
[null,null,null,null,null,null,null,null,null,"Shakopee Mdewakanton Sioux Community of Minnesota"]
[null,null,null,null,null,null,null,null,null,"Shamattawa First Nation"]
[null,null,null,null,null,null,null,null,null,"Shawanaga First Nation"]
[null,null,null,null,null,null,null,null,null,"Shawnee Tribe"]
[null,null,null,null,null,null,null,null,null,"Sheguiandah First Nation"]
[null,null,null,null,null,null,null,null,null,"Sherwood Valley Rancheria of Pomo Indians of California"]
[null,null,null,null,null,null,null,null,null,"Sheshatshiu Innu First Nation"]
[null,null,null,null,null,null,null,null,null,"Sheshegwaning"]
[null,null,null,null,null,null,null,null,null,"Sheshegwaning First Nation"]
[null,null,null,null,null,null,null,null,null,"Shibogama First Nations Council"]
[null,null,null,null,null,null,null,null,null,"Shingle Springs Band of Miwok Indians, Shingle Springs Rancheria (Verona Tract), California"]
[null,null,null,null,null,null,null,null,null,"Shinnecock Indian Nation"]
[null,null,null,null,null,null,null,null,null,"Shishalh Nation"]
[null,null,null,null,null,null,null,null,null,"Shoal Lake 40 First Nation"]
[null,null,null,null,null,null,null,null,null,"Shoal Lake Cree Nation"]
[null,null,null,null,null,null,null,null,null,"Shoalwater Bay Indian Tribe"]
[null,null,null,null,null,null,null,null,null,"Shoshone-Bannock Tribes of the Fort Hall Reservation"]
[null,null,null,null,null,null,null,null,null,"Shoshone-Paiute Tribes of the Duck Valley Reservation, Nevada"]
[null,null,null,null,null,null,null,null,null,"Shuswap Indian Band"]
[null,null,null,null,null,null,null,null,null,"Shxwhá:y Village"]
[null,null,null,null,null,null,null,null,null,"Shxw'ow'hamel First Nation"]
[null,null,null,null,null,null,null,null,null,"Sik-E-Dakh (Glen Vowell Band)"]
[null,null,null,null,null,null,null,null,null,"Siksika Nation"]
[null,null,null,null,null,null,null,null,null,"Simpcw First Nation"]
[null,null,null,null,null,null,null,null,null,"Sioux Valley Dakota Nation"]
[null,null,null,null,null,null,null,null,null,"SIPEKNE'KATIK"]
[null,null,null,null,null,null,null,null,null,"Siska"]
[null,null,null,null,null,null,null,null,null,"Sisseton-Wahpeton Oyate of the Lake Traverse Reservation, SD"]
[null,null,null,null,null,null,null,null,null,"Sitka Tribe of Alaska"]
[null,null,null,null,null,null,null,null,null,"Six Nations of the Grand River"]
[null,null,null,null,null,null,null,null,null,"Skagway Village"]
[null,null,null,null,null,null,null,null,null,"Skatin First Nations"]
[null,null,null,null,null,null,null,null,null,"Skawahlook First Nation"]
[null,null,null,null,null,null,null,null,null,"Skeetchestn Indian Band"]
[null,null,null,null,null,null,null,null,null,"Skidegate First Nation"]
[null,null,null,null,null,null,null,null,null,"Skii kmLax Ha, Tsetsaut"]
[null,null,null,null,null,null,null,null,null,"Skin Tyee First Nation"]
[null,null,null,null,null,null,null,null,null,"Skokomish Indian Tribe"]
[null,null,null,null,null,null,null,null,null,"Skowkale First Nation"]
[null,null,null,null,null,null,null,null,null,"Skownan First Nation"]
[null,null,null,null,null,null,null,null,null,"Skull Valley Band of Goshute Indians of Utah"]
[null,null,null,null,null,null,null,null,null,"Skuppah Indian Band"]
[null,null,null,null,null,null,null,null,null,"Skwah First Nation"]
[null,null,null,null,null,null,null,null,null,"Slate Falls First Nation"]
[null,null,null,null,null,null,null,null,null,"Smith's Landing First Nation"]
[null,null,null,null,null,null,null,null,null,"Snimikobi (Ardoch) Algonquin First Nation"]
[null,null,null,null,null,null,null,null,null,"Snoqualmie Indian Tribe"]
[null,null,null,null,null,null,null,null,null,"Snuneymuxw First Nation"]
[null,null,null,null,null,null,null,null,null,"Soboba Band of Luiseno Indians, California"]
[null,null,null,null,null,null,null,null,null,"Soda Creek First Nations"]
[null,null,null,null,null,null,null,null,null,"Sokaogon Chippewa Community, Wisconsin"]
[null,null,null,null,null,null,null,null,null,"Songhees Nation"]
[null,null,null,null,null,null,null,null,null,"Soowahlie First Nation"]
[null,null,null,null,null,null,null,null,null,"South Naknek Village"]
[null,null,null,null,null,null,null,null,null,"Southeast Treaty #4 Tribal Council"]
[null,null,null,null,null,null,null,null,null,"Southern Chiefs Organization Inc."]
[null,null,null,null,null,null,null,null,null,"Southern Ute Indian Tribe"]
[null,null,null,null,null,null,null,null,null,"Spirit Lake Tribe, North Dakota"]
[null,null,null,null,null,null,null,null,null,"Splatsin First Nation"]
[null,null,null,null,null,null,null,null,null,"Spokane Tribe of the Spokane Reservation"]
[null,null,null,null,null,null,null,null,null,"Spuzzum First Nation"]
[null,null,null,null,null,null,null,null,null,"Sq'éwlets First Nation"]
[null,null,null,null,null,null,null,null,null,"Squamish Nation"]
[null,null,null,null,null,null,null,null,null,"Squaxin Island Tribe of the Squaxin Island Reservation"]
[null,null,null,null,null,null,null,null,null,"Squiala First Nation"]
[null,null,null,null,null,null,null,null,null,"St. Croix Chippewa Indians of Wisconsin"]
[null,null,null,null,null,null,null,null,null,"St. Mary's First Nation"]
[null,null,null,null,null,null,null,null,null,"St. Mary's Indian Band"]
[null,null,null,null,null,null,null,null,null,"St. Theresa Point First Nation"]
[null,null,null,null,null,null,null,null,null,"Standing Buffalo Dakota First Nation"]
[null,null,null,null,null,null,null,null,null,"Standing Rock Sioux Tribe of North & South Dakota"]
[null,null,null,null,null,null,null,null,null,"Star Blanket Cree Nation"]
[null,null,null,null,null,null,null,null,null,"Stebbins Community Association"]
[null,null,null,null,null,null,null,null,null,"Stellat'en First Nation"]
[null,null,null,null,null,null,null,null,null,"Stillaguamish Tribe of Indians of Washington"]
[null,null,null,null,null,null,null,null,null,"Stockbridge Munsee Community, Wisconsin"]
[null,null,null,null,null,null,null,null,null,"Stoney Nakoda Nation"]
[null,null,null,null,null,null,null,null,null,"Sts'ailes First Nation"]
[null,null,null,null,null,null,null,null,null,"Stswecem'c Xgat'tem First Nation"]
[null,null,null,null,null,null,null,null,null,"Sturgeon Lake Cree Nation"]
[null,null,null,null,null,null,null,null,null,"Stz'uminus First Nation"]
[null,null,null,null,null,null,null,null,null,"Suactuav"]
[null,null,null,null,null,null,null,null,null,"Sucker Creek First Nation"]
[null,null,null,null,null,null,null,null,null,"Sumas First Nation"]
[null,null,null,null,null,null,null,null,null,"Summit Lake Paiute Tribe of Nevada"]
[null,null,null,null,null,null,null,null,null,"Sun'aq Tribe of Kodiak"]
[null,null,null,null,null,null,null,null,null,"Sunchild First Nation"]
[null,null,null,null,null,null,null,null,null,"Sundance First Nation"]
[null,null,null,null,null,null,null,null,null,"Suquamish Indian Tribe of the Port Madison Reservation"]
[null,null,null,null,null,null,null,null,null,"Susanville Indian Rancheria, California"]
[null,null,null,null,null,null,null,null,null,"Swan Lake First Nation"]
[null,null,null,null,null,null,null,null,null,"Swan River First Nation"]
[null,null,null,null,null,null,null,null,null,"Sweetgrass First Nation"]
[null,null,null,null,null,null,null,null,null,"Swinomish Indian Tribal Community"]
[null,null,null,null,null,null,null,null,null,"Sycuan Band of the Kumeyaay Nation"]
[null,null,null,null,null,null,null,null,null,"Ta'an Kwach'an"]
[null,null,null,null,null,null,null,null,null,"Table Mountain Rancheria of California"]
[null,null,null,null,null,null,null,null,null,"Tahltan Nation"]
[null,null,null,null,null,null,null,null,null,"Takla Lake First Nation"]
[null,null,null,null,null,null,null,null,null,"Takotna Village"]
[null,null,null,null,null,null,null,null,null,"Taku River Tlingit First Nation"]
[null,null,null,null,null,null,null,null,null,"Tallcree First Nation"]
[null,null,null,null,null,null,null,null,null,"Tangirnaq Native Village (aka Woody Island)"]
[null,null,null,null,null,null,null,null,null,"Tataskweyak Cree Nation"]
[null,null,null,null,null,null,null,null,null,"Taykwa Tagamou Nation"]
[null,null,null,null,null,null,null,null,null,"Tejon Indian Tribe"]
[null,null,null,null,null,null,null,null,null,"Telida Village"]
[null,null,null,null,null,null,null,null,null,"Temagami First Nation"]
[null,null,null,null,null,null,null,null,null,"Te-Moak Tribe of Western Shoshone Indians of Nevada (Four constituent bands: Battle Mountain Band; Elko Band; South Fork Band and Wells Band)"]
[null,null,null,null,null,null,null,null,null,"Teslin Tlingit Council"]
[null,null,null,null,null,null,null,null,null,"Tetlit Gwich'in"]
[null,null,null,null,null,null,null,null,null,"The Chickasaw Nation"]
[null,null,null,null,null,null,null,null,null,"The Choctaw Nation of Oklahoma"]
[null,null,null,null,null,null,null,null,null,"The Crees of the Waskaganish First Nation"]
[null,null,null,null,null,null,null,null,null,"The Key First Nation"]
[null,null,null,null,null,null,null,null,null,"The Modoc Tribe of Oklahoma"]
[null,null,null,null,null,null,null,null,null,"The Muscogee (Creek) Nation"]
[null,null,null,null,null,null,null,null,null,"The Nistawoyou Association Friendship Center"]
[null,null,null,null,null,null,null,null,null,"The Quapaw Tribe of Indians"]
[null,null,null,null,null,null,null,null,null,"The Seminole Nation of Oklahoma"]
[null,null,null,null,null,null,null,null,null,"Thessalon First Nation"]
[null,null,null,null,null,null,null,null,null,"Thlopthlocco Tribal Town"]
[null,null,null,null,null,null,null,null,null,"Three Affiliated Tribes of the Fort Berthold Reservation, ND"]
[null,null,null,null,null,null,null,null,null,"Thunderchild First Nation"]
[null,null,null,null,null,null,null,null,null,"Timiskaming First Nation"]
[null,null,null,null,null,null,null,null,null,"T'it'q'et First Nation"]
[null,null,null,null,null,null,null,null,null,"Tk'emlúps te Secwépemc"]
[null,null,null,null,null,null,null,null,null,"Tla'amin Nation"]
[null,null,null,null,null,null,null,null,null,"Tla-o-qui-aht First Nation"]
[null,null,null,null,null,null,null,null,null,"Tlatlasikwala First Nation"]
[null,null,null,null,null,null,null,null,null,"Tl'azt'en Nation"]
[null,null,null,null,null,null,null,null,null,"Tl'esqox"]
[null,null,null,null,null,null,null,null,null,"Tl'etinqox Government"]
[null,null,null,null,null,null,null,null,null,"Tlowitsis Nation"]
[null,null,null,null,null,null,null,null,null,"Tobacco Plains Indian Band"]
[null,null,null,null,null,null,null,null,null,"Tobique First Nation"]
[null,null,null,null,null,null,null,null,null,"Tohono O'odham Nation of Arizona"]
[null,null,null,null,null,null,null,null,null,"Tolowa Dee-Ni' Nation"]
[null,null,null,null,null,null,null,null,null,"Tonawanda Band of Seneca"]
[null,null,null,null,null,null,null,null,null,"Tonkawa Tribe of Indians of Oklahoma"]
[null,null,null,null,null,null,null,null,null,"Tonto Apache Tribe of Arizona"]
[null,null,null,null,null,null,null,null,null,"Toosey"]
[null,null,null,null,null,null,null,null,null,"Tootinaowaziibeeng Treaty Reserve"]
[null,null,null,null,null,null,null,null,null,"Toquaht"]
[null,null,null,null,null,null,null,null,null,"Torres Martinez Desert Cahuilla Indians, California"]
[null,null,null,null,null,null,null,null,null,"Touchwood Agency Tribal Council"]
[null,null,null,null,null,null,null,null,null,"Traditional Village of Togiak"]
[null,null,null,null,null,null,null,null,null,"Treaty 1 First Nations"]
[null,null,null,null,null,null,null,null,null,"Treaty 8 Tribal Association"]
[null,null,null,null,null,null,null,null,null,"Tr'ondëk Hwëch'in"]
[null,null,null,null,null,null,null,null,null,"Tsal'alh"]
[null,null,null,null,null,null,null,null,null,"Tsartlip First Nation"]
[null,null,null,null,null,null,null,null,null,"Tsawout First Nation"]
[null,null,null,null,null,null,null,null,null,"Tsawwassen First Nation"]
[null,null,null,null,null,null,null,null,null,"Tsay Keh Dene Nation"]
[null,null,null,null,null,null,null,null,null,"Tseshaht First Nation"]
[null,null,null,null,null,null,null,null,null,"Tseycum"]
[null,null,null,null,null,null,null,null,null,"Tŝideldel First Nation"]
[null,null,null,null,null,null,null,null,null,"Ts'kw'aylaxw First Nation"]
[null,null,null,null,null,null,null,null,null,"Tsleil-Waututh Nation"]
[null,null,null,null,null,null,null,null,null,"T'Sou-ke First Nation"]
[null,null,null,null,null,null,null,null,null,"Ts'uubaa-asatx"]
[null,null,null,null,null,null,null,null,null,"Tsuut'ina Nation"]
[null,null,null,null,null,null,null,null,null,"Tulalip Tribes of Washington"]
[null,null,null,null,null,null,null,null,null,"Tule River Indian Tribe of the Tule River Reservation, California"]
[null,null,null,null,null,null,null,null,null,"Tulita Dene"]
[null,null,null,null,null,null,null,null,null,"Tuluksak Native Community"]
[null,null,null,null,null,null,null,null,null,"Tunica-Biloxi Indian Tribe"]
[null,null,null,null,null,null,null,null,null,"Tuolumne Band of Me-Wuk Indians of the Tuolumne Rancheria of California"]
[null,null,null,null,null,null,null,null,null,"Turtle Mountain Band of Chippewa Indians of North Dakota"]
[null,null,null,null,null,null,null,null,null,"Tuscarora Nation"]
[null,null,null,null,null,null,null,null,null,"Twenty-Nine Palms Band of Mission Indians of California"]
[null,null,null,null,null,null,null,null,null,"Twin Hills Village"]
[null,null,null,null,null,null,null,null,null,"Tzeachten"]
[null,null,null,null,null,null,null,null,null,"Tzeachten First Nation"]
[null,null,null,null,null,null,null,null,null,"Uchucklesaht"]
[null,null,null,null,null,null,null,null,null,"Ucluelet First Nation"]
[null,null,null,null,null,null,null,null,null,"Ugashik Village"]
[null,null,null,null,null,null,null,null,null,"Ulkatcho First Nation"]
[null,null,null,null,null,null,null,null,null,"Umkumiut Native Village"]
[null,null,null,null,null,null,null,null,null,"Union Bar First Nation"]
[null,null,null,null,null,null,null,null,null,"Union of BC Indian Chiefs"]
[null,null,null,null,null,null,null,null,null,"United Auburn Indian Community of the Auburn Rancheria of California"]
[null,null,null,null,null,null,null,null,null,"United Keetoowah Band of Cherokee Indians in Oklahoma"]
[null,null,null,null,null,null,null,null,null,"Upper Cayuga First Nation"]
[null,null,null,null,null,null,null,null,null,"Upper Mohawk First Nation"]
[null,null,null,null,null,null,null,null,null,"Upper Mohawk Six Nations of the Grand River"]
[null,null,null,null,null,null,null,null,null,"Upper Nicola"]
[null,null,null,null,null,null,null,null,null,"Upper Similkameen Indian Band"]
[null,null,null,null,null,null,null,null,null,"Upper Sioux Community, Minnesota"]
[null,null,null,null,null,null,null,null,null,"Upper Skagit Indian Tribe"]
[null,null,null,null,null,null,null,null,null,"Ute Indian Tribe of the Uintah & Ouray Reservation, Utah"]
[null,null,null,null,null,null,null,null,null,"Ute Mountain Ute Tribe"]
[null,null,null,null,null,null,null,null,null,"Utu Utu Gwaitu Paiute Tribe of the Benton Paiute Reservation, California"]
[null,null,null,null,null,null,null,null,null,"Valley View Metis"]
[null,null,null,null,null,null,null,null,null,"Valleyview Metis Local 1929"]
[null,null,null,null,null,null,null,null,null,"Vancouver Nisga'a Urban Local"]
[null,null,null,null,null,null,null,null,null,"Village of Alakanuk"]
[null,null,null,null,null,null,null,null,null,"Village of Anaktuvuk Pass"]
[null,null,null,null,null,null,null,null,null,"Village of Aniak"]
[null,null,null,null,null,null,null,null,null,"Village of Atmautluak"]
[null,null,null,null,null,null,null,null,null,"Village of Bill Moore's Slough"]
[null,null,null,null,null,null,null,null,null,"Village of Chefornak"]
[null,null,null,null,null,null,null,null,null,"Village of Clarks Point"]
[null,null,null,null,null,null,null,null,null,"Village of Crooked Creek"]
[null,null,null,null,null,null,null,null,null,"Village of Dot Lake"]
[null,null,null,null,null,null,null,null,null,"Village of Iliamna"]
[null,null,null,null,null,null,null,null,null,"Village of Kalskag"]
[null,null,null,null,null,null,null,null,null,"Village of Kaltag"]
[null,null,null,null,null,null,null,null,null,"Village of Kotlik"]
[null,null,null,null,null,null,null,null,null,"Village of Lower Kalskag"]
[null,null,null,null,null,null,null,null,null,"Village of Ohogamiut"]
[null,null,null,null,null,null,null,null,null,"Village of Red Devil"]
[null,null,null,null,null,null,null,null,null,"Village of Salamatoff"]
[null,null,null,null,null,null,null,null,null,"Village of Sleetmute"]
[null,null,null,null,null,null,null,null,null,"Village of Solomon"]
[null,null,null,null,null,null,null,null,null,"Village of Stony River"]
[null,null,null,null,null,null,null,null,null,"Village of Venetie"]
[null,null,null,null,null,null,null,null,null,"Village of Wainwright"]
[null,null,null,null,null,null,null,null,null,"Vuntut Gwitchin First Nation"]
[null,null,null,null,null,null,null,null,null,"Waabnoong Bemjiwang Association of First Nations"]
[null,null,null,null,null,null,null,null,null,"Wabasca Metis Local #90"]
[null,null,null,null,null,null,null,null,null,"Wabaseemoong Independent Nations"]
[null,null,null,null,null,null,null,null,null,"Wabauskang First Nation"]
[null,null,null,null,null,null,null,null,null,"Wabigoon Lake Ojibway Nation"]
[null,null,null,null,null,null,null,null,null,"Wabun Tribal Council"]
[null,null,null,null,null,null,null,null,null,"Wagmatcook First Nation"]
[null,null,null,null,null,null,null,null,null,"Wahgoshig First Nation"]
[null,null,null,null,null,null,null,null,null,"Wahnapitae First Nation"]
[null,null,null,null,null,null,null,null,null,"Wahpeton Dakota Nation"]
[null,null,null,null,null,null,null,null,null,"Wahta Mohawk"]
[null,null,null,null,null,null,null,null,null,"Walker Mohawk First Nation"]
[null,null,null,null,null,null,null,null,null,"Walker River Paiute Tribe of the Walker River Reservation, Nevada"]
[null,null,null,null,null,null,null,null,null,"Walpole Island First Nation"]
[null,null,null,null,null,null,null,null,null,"Wampanoag Tribe of Gay Head (Aquinnah)"]
[null,null,null,null,null,null,null,null,null,"Wapekeka First Nation"]
[null,null,null,null,null,null,null,null,null,"War Lake First Nation"]
[null,null,null,null,null,null,null,null,null,"Wasagamack First Nation"]
[null,null,null,null,null,null,null,null,null,"Wasauksing First Nation"]
[null,null,null,null,null,null,null,null,null,"Washagamis Bay First Nation"]
[null,null,null,null,null,null,null,null,null,"Washoe Tribe of Nevada & California (Carson Colony, Dresslerville Colony, Woodfords Community, Stewart Community, & Washoe Ranches)"]
[null,null,null,null,null,null,null,null,null,"Waswanipi"]
[null,null,null,null,null,null,null,null,null,"Waterhen Lake First Nation"]
[null,null,null,null,null,null,null,null,null,"Wauzhushk Onigum - Rat Portage"]
[null,null,null,null,null,null,null,null,null,"Wauzhushk Onigum Nation"]
[null,null,null,null,null,null,null,null,null,"Wawakapewin First Nation"]
[null,null,null,null,null,null,null,null,null,"Waycobah First Nation"]
[null,null,null,null,null,null,null,null,null,"Waywayseecappo First Nation"]
[null,null,null,null,null,null,null,null,null,"Webequie First Nation"]
[null,null,null,null,null,null,null,null,null,"Weenusk First Nation"]
[null,null,null,null,null,null,null,null,null,"Wei Wai Kum First Nation"]
[null,null,null,null,null,null,null,null,null,"We'koqma'q First Nation"]
[null,null,null,null,null,null,null,null,null,"Wemotaci First Nation"]
[null,null,null,null,null,null,null,null,null,"Wesley First Nation"]
[null,null,null,null,null,null,null,null,null,"West Moberly First Nations"]
[null,null,null,null,null,null,null,null,null,"West Point First Nation"]
[null,null,null,null,null,null,null,null,null,"West Region Tribal Council"]
[null,null,null,null,null,null,null,null,null,"Westbank First Nation"]
[null,null,null,null,null,null,null,null,null,"Western Cree Tribal Council"]
[null,null,null,null,null,null,null,null,null,"Wet'suwet'en First Nation"]
[null,null,null,null,null,null,null,null,null,"Wha Ti First Nation"]
[null,null,null,null,null,null,null,null,null,"Whispering Pines / Clinton Indian Band"]
[null,null,null,null,null,null,null,null,null,"White Bear First Nations"]
[null,null,null,null,null,null,null,null,null,"White Mountain Apache Tribe of the Fort Apache Reservation, Arizona"]
[null,null,null,null,null,null,null,null,null,"White River First Nation"]
[null,null,null,null,null,null,null,null,null,"Whitecap Dakota First Nation"]
[null,null,null,null,null,null,null,null,null,"Whitefish Lake First Nation"]
[null,null,null,null,null,null,null,null,null,"Whitefish Lake First Nation #128"]
[null,null,null,null,null,null,null,null,null,"Whitefish Lake First Nation #459"]
[null,null,null,null,null,null,null,null,null,"Whitefish River First Nation"]
[null,null,null,null,null,null,null,null,null,"Whitesand First Nation"]
[null,null,null,null,null,null,null,null,null,"Whitney and Area Algonquins"]
[null,null,null,null,null,null,null,null,null,"Wichita and Affiliated Tribes"]
[null,null,null,null,null,null,null,null,null,"Wii Eelast"]
[null,null,null,null,null,null,null,null,null,"Wii Gyet"]
[null,null,null,null,null,null,null,null,null,"Wii Mugulsxw"]
[null,null,null,null,null,null,null,null,null,"Wikwemikong First Nation"]
[null,null,null,null,null,null,null,null,null,"Wildrose Eastern Metis Association"]
[null,null,null,null,null,null,null,null,null,"Williams Lake First Nation"]
[null,null,null,null,null,null,null,null,null,"Willow Lake Metis Local #780"]
[null,null,null,null,null,null,null,null,null,"Wilp Gaxsbgabax"]
[null,null,null,null,null,null,null,null,null,"Wilp Geel"]
[null,null,null,null,null,null,null,null,null,"Wilp Hanamux"]
[null,null,null,null,null,null,null,null,null,"Wilp Kyooluugyat (Gyologyet)"]
[null,null,null,null,null,null,null,null,null,"Wilp Luus"]
[null,null,null,null,null,null,null,null,null,"Wilp Nii Kyap"]
[null,null,null,null,null,null,null,null,null,"Wilp Nikateen"]
[null,null,null,null,null,null,null,null,null,"Wilp Sakum Higookxw"]
[null,null,null,null,null,null,null,null,null,"Wilp Spookw"]
[null,null,null,null,null,null,null,null,null,"Wilp Ts'ogashlee"]
[null,null,null,null,null,null,null,null,null,"Wilp Wiigyat"]
[null,null,null,null,null,null,null,null,null,"Wilp Wilxo'oskwhl Nisga'a Institute"]
[null,null,null,null,null,null,null,null,null,"Wilps Gutginuuxs"]
[null,null,null,null,null,null,null,null,null,"Wilton Rancheria"]
[null,null,null,null,null,null,null,null,null,"Windigo Tribal Council"]
[null,null,null,null,null,null,null,null,null,"Winnebago Tribe of Nebraska"]
[null,null,null,null,null,null,null,null,null,"Winnemucca Indian Colony of Nevada"]
[null,null,null,null,null,null,null,null,null,"Witchekan Lake First Nation"]
[null,null,null,null,null,null,null,null,null,"Witset First Nation"]
[null,null,null,null,null,null,null,null,null,"Wiyot Tribe, California"]
[null,null,null,null,null,null,null,null,null,"Wolf Lake First Nation"]
[null,null,null,null,null,null,null,null,null,"Wood Buffalo First Nation Elders Society"]
[null,null,null,null,null,null,null,null,null,"Wood Mountain Lakota First Nation"]
[null,null,null,null,null,null,null,null,null,"Woodland Cree First Nation"]
[null,null,null,null,null,null,null,null,null,"Woodstock First Nation"]
[null,null,null,null,null,null,null,null,null,"Woodstock First Nation and Madawaska Maliseet First Nation"]
[null,null,null,null,null,null,null,null,null,"Wosimlaxha"]
[null,null,null,null,null,null,null,null,null,"Wrangell Cooperative Association"]
[null,null,null,null,null,null,null,null,null,"Wuikinuxv Nation"]
[null,null,null,null,null,null,null,null,null,"Wunnumin Lake First Nation"]
[null,null,null,null,null,null,null,null,null,"Wuse Mo"]
[null,null,null,null,null,null,null,null,null,"Wuskwi Sipihk First Nation"]
[null,null,null,null,null,null,null,null,null,"Wyandotte Nation"]
[null,null,null,null,null,null,null,null,null,"Xaxli'p"]
[null,null,null,null,null,null,null,null,null,"Xeni Gwet'in First Nations Government"]
[null,null,null,null,null,null,null,null,null,"Yagosip"]
[null,null,null,null,null,null,null,null,null,"Yakutat Tlingit Tribe"]
[null,null,null,null,null,null,null,null,null,"Yakweakwioose"]
[null,null,null,null,null,null,null,null,null,"Yale First Nation"]
[null,null,null,null,null,null,null,null,null,"Yankton Sioux Tribe of South Dakota"]
[null,null,null,null,null,null,null,null,null,"Yavapai-Apache Nation of the Camp Verde Indian Reservation, Arizona"]
[null,null,null,null,null,null,null,null,null,"Yavapai-Prescott Indian Tribe"]
[null,null,null,null,null,null,null,null,null,"Yekooche First Nation"]
[null,null,null,null,null,null,null,null,null,"Yellow Quill First Nation"]
[null,null,null,null,null,null,null,null,null,"Yellowhead Tribal Council"]
[null,null,null,null,null,null,null,null,null,"Yellowknives Dene First Nation"]
[null,null,null,null,null,null,null,null,null,"Yerington Paiute Tribe of the Yerington Colony & Campbell Ranch, Nevada"]
[null,null,null,null,null,null,null,null,null,"Yocha Dehe Wintun Nation, California"]
[null,null,null,null,null,null,null,null,null,"Yomba Shoshone Tribe of the Yomba Reservation, Nevada"]
[null,null,null,null,null,null,null,null,null,"York Factory First Nation"]
[null,null,null,null,null,null,null,null,null,"Yorkton Tribal Council"]
[null,null,null,null,null,null,null,null,null,"Young Chippewayan First Nation"]
[null,null,null,null,null,null,null,null,null,"Ysleta del Sur Pueblo"]
[null,null,null,null,null,null,null,null,null,"Yunesit'in Government"]
[null,null,null,null,null,null,null,null,null,"Yupiit of Andreafski"]
[null,null,null,null,null,null,null,null,null,"Yurok Tribe of the Yurok Reservation, California"]
[null,null,null,null,null,null,null,null,null,"Zagime Anishinabek (Sakimay First Nations)"]
[null,null,null,null,null,null,null,null,null,"Zhiibaahaasing First Nation"]
[null,null,null,null,null,null,null,null,null,"Zuni Tribe of the Zuni Reservation"]